Workbook

Sheet Lånekalkylator
B1: Enkel lånekalkylator
B2: Ange värden
B3: Lånebelopp | E3: 5,000.00 kr
B4: Årlig räntesats | E4: 5.50%
B5: Låneperiod i antal år | E5: 5
B6: Startdatum för lån | E6: =TODAY() -> 2020-04-15
B8: Månadsbetalning | E8: =IFERROR(IF(Angivna_Värden,Månadsbetalning,""), "") -> 95.51 kr
B9: Antal betalningar | E9: =IFERROR(IF(Angivna_Värden,Låneår*12,""), "") -> 60
B10: Summa ränta | E10: =IFERROR(IF(Angivna_Värden,Total_Kostnad-Lånebelopp,""), "") -> 730.35 kr
B11: Total kostnad för lånet | E11: =IFERROR(IF(Angivna_Värden,Månadsbetalning*Antal_Betalningar,""), "") -> 5,730.35 kr
B12: Nr. | C12: Betalning Datum | D12: Ingående saldo | E12: Betalning | F12: Amortering | G12: Ränta | H12: Utgående saldo
B13: =IFERROR(IF(Ej_Betalat_Lån*Angivna_Värden,Betalningsnummer,""), "") -> 1 | C13: =IFERROR(IF(Ej_Betalat_Lån*Angivna_Värden,Betalningsdatum,""), "") -> 2020-05-15 | D13: =IFERROR(IF(Ej_Betalat_Lån*Angivna_Värden,Ingående_Saldo,""), "") -> 5,000.00 kr | E13: =IFERROR(IF(Ej_Betalat_Lån*Angivna_Värden,Månadsbetalning,""), "") -> 95.51 kr | F13: =IFERROR(IF(Ej_Betalat_Lån*Angivna_Värden,Amortering,""), "") -> 72.59 kr | G13: =IFERROR(IF(Ej_Betalat_Lån*Angivna_Värden,Ränta,""), "") -> 22.92 kr | H13: =IFERROR(IF(Ej_Betalat_Lån*Angivna_Värden,Utgående_Saldo,""), "") -> 4,927.41 kr
B14: =IFERROR(IF(Ej_Betalat_Lån*Angivna_Värden,Betalningsnummer,""), "") -> 2 | C14: =IFERROR(IF(Ej_Betalat_Lån*Angivna_Värden,Betalningsdatum,""), "") -> 2020-06-15 | D14: =IFERROR(IF(Ej_Betalat_Lån*Angivna_Värden,Ingående_Saldo,""), "") -> 4,927.41 kr | E14: =IFERROR(IF(Ej_Betalat_Lån*Angivna_Värden,Månadsbetalning,""), "") -> 95.51 kr | F14: =IFERROR(IF(Ej_Betalat_Lån*Angivna_Värden,Amortering,""), "") -> 72.92 kr | G14: =IFERROR(IF(Ej_Betalat_Lån*Angivna_Värden,Ränta,""), "") -> 22.58 kr | H14: =IFERROR(IF(Ej_Betalat_Lån*Angivna_Värden,Utgående_Saldo,""), "") -> 4,854.49 kr
B15: =IFERROR(IF(Ej_Betalat_Lån*Angivna_Värden,Betalningsnummer,""), "") -> 3 | C15: =IFERROR(IF(Ej_Betalat_Lån*Angivna_Värden,Betalningsdatum,""), "") -> 2020-07-15 | D15: =IFERROR(IF(Ej_Betalat_Lån*Angivna_Värden,Ingående_Saldo,""), "") -> 4,854.49 kr | E15: =IFERROR(IF(Ej_Betalat_Lån*Angivna_Värden,Månadsbetalning,""), "") -> 95.51 kr | F15: =IFERROR(IF(Ej_Betalat_Lån*Angivna_Värden,Amortering,""), "") -> 73.26 kr | G15: =IFERROR(IF(Ej_Betalat_Lån*Angivna_Värden,Ränta,""), "") -> 22.25 kr | H15: =IFERROR(IF(Ej_Betalat_Lån*Angivna_Värden,Utgående_Saldo,""), "") -> 4,781.23 kr
B16: =IFERROR(IF(Ej_Betalat_Lån*Angivna_Värden,Betalningsnummer,""), "") -> 4 | C16: =IFERROR(IF(Ej_Betalat_Lån*Angivna_Värden,Betalningsdatum,""), "") -> 2020-08-15 | D16: =IFERROR(IF(Ej_Betalat_Lån*Angivna_Värden,Ingående_Saldo,""), "") -> 4,781.23 kr | E16: =IFERROR(IF(Ej_Betalat_Lån*Angivna_Värden,Månadsbetalning,""), "") -> 95.51 kr | F16: =IFERROR(IF(Ej_Betalat_Lån*Angivna_Värden,Amortering,""), "") -> 73.59 kr | G16: =IFERROR(IF(Ej_Betalat_Lån*Angivna_Värden,Ränta,""), "") -> 21.91 kr | H16: =IFERROR(IF(Ej_Betalat_Lån*Angivna_Värden,Utgående_Saldo,""), "") -> 4,707.64 kr
B17: =IFERROR(IF(Ej_Betalat_Lån*Angivna_Värden,Betalningsnummer,""), "") -> 5 | C17: =IFERROR(IF(Ej_Betalat_Lån*Angivna_Värden,Betalningsdatum,""), "") -> 2020-09-15 | D17: =IFERROR(IF(Ej_Betalat_Lån*Angivna_Värden,Ingående_Saldo,""), "") -> 4,707.64 kr | E17: =IFERROR(IF(Ej_Betalat_Lån*Angivna_Värden,Månadsbetalning,""), "") -> 95.51 kr | F17: =IFERROR(IF(Ej_Betalat_Lån*Angivna_Värden,Amortering,""), "") -> 73.93 kr | G17: =IFERROR(IF(Ej_Betalat_Lån*Angivna_Värden,Ränta,""), "") -> 21.58 kr | H17: =IFERROR(IF(Ej_Betalat_Lån*Angivna_Värden,Utgående_Saldo,""), "") -> 4,633.71 kr
B18: =IFERROR(IF(Ej_Betalat_Lån*Angivna_Värden,Betalningsnummer,""), "") -> 6 | C18: =IFERROR(IF(Ej_Betalat_Lån*Angivna_Värden,Betalningsdatum,""), "") -> 2020-10-15 | D18: =IFERROR(IF(Ej_Betalat_Lån*Angivna_Värden,Ingående_Saldo,""), "") -> 4,633.71 kr | E18: =IFERROR(IF(Ej_Betalat_Lån*Angivna_Värden,Månadsbetalning,""), "") -> 95.51 kr | F18: =IFERROR(IF(Ej_Betalat_Lån*Angivna_Värden,Amortering,""), "") -> 74.27 kr | G18: =IFERROR(IF(Ej_Betalat_Lån*Angivna_Värden,Ränta,""), "") -> 21.24 kr | H18: =IFERROR(IF(Ej_Betalat_Lån*Angivna_Värden,Utgående_Saldo,""), "") -> 4,559.44 kr
B19: =IFERROR(IF(Ej_Betalat_Lån*Angivna_Värden,Betalningsnummer,""), "") -> 7 | C19: =IFERROR(IF(Ej_Betalat_Lån*Angivna_Värden,Betalningsdatum,""), "") -> 2020-11-15 | D19: =IFERROR(IF(Ej_Betalat_Lån*Angivna_Värden,Ingående_Saldo,""), "") -> 4,559.44 kr | E19: =IFERROR(IF(Ej_Betalat_Lån*Angivna_Värden,Månadsbetalning,""), "") -> 95.51 kr | F19: =IFERROR(IF(Ej_Betalat_Lån*Angivna_Värden,Amortering,""), "") -> 74.61 kr | G19: =IFERROR(IF(Ej_Betalat_Lån*Angivna_Värden,Ränta,""), "") -> 20.90 kr | H19: =IFERROR(IF(Ej_Betalat_Lån*Angivna_Värden,Utgående_Saldo,""), "") -> 4,484.84 kr
B20: =IFERROR(IF(Ej_Betalat_Lån*Angivna_Värden,Betalningsnummer,""), "") -> 8 | C20: =IFERROR(IF(Ej_Betalat_Lån*Angivna_Värden,Betalningsdatum,""), "") -> 2020-12-15 | D20: =IFERROR(IF(Ej_Betalat_Lån*Angivna_Värden,Ingående_Saldo,""), "") -> 4,484.84 kr | E20: =IFERROR(IF(Ej_Betalat_Lån*Angivna_Värden,Månadsbetalning,""), "") -> 95.51 kr | F20: =IFERROR(IF(Ej_Betalat_Lån*Angivna_Värden,Amortering,""), "") -> 74.95 kr | G20: =IFERROR(IF(Ej_Betalat_Lån*Angivna_Värden,Ränta,""), "") -> 20.56 kr | H20: =IFERROR(IF(Ej_Betalat_Lån*Angivna_Värden,Utgående_Saldo,""), "") -> 4,409.89 kr
B21: =IFERROR(IF(Ej_Betalat_Lån*Angivna_Värden,Betalningsnummer,""), "") -> 9 | C21: =IFERROR(IF(Ej_Betalat_Lån*Angivna_Värden,Betalningsdatum,""), "") -> 2021-01-15 | D21: =IFERROR(IF(Ej_Betalat_Lån*Angivna_Värden,Ingående_Saldo,""), "") -> 4,409.89 kr | E21: =IFERROR(IF(Ej_Betalat_Lån*Angivna_Värden,Månadsbetalning,""), "") -> 95.51 kr | F21: =IFERROR(IF(Ej_Betalat_Lån*Angivna_Värden,Amortering,""), "") -> 75.29 kr | G21: =IFERROR(IF(Ej_Betalat_Lån*Angivna_Värden,Ränta,""), "") -> 20.21 kr | H21: =IFERROR(IF(Ej_Betalat_Lån*Angivna_Värden,Utgående_Saldo,""), "") -> 4,334.59 kr
B22: =IFERROR(IF(Ej_Betalat_Lån*Angivna_Värden,Betalningsnummer,""), "") -> 10 | C22: =IFERROR(IF(Ej_Betalat_Lån*Angivna_Värden,Betalningsdatum,""), "") -> 2021-02-15 | D22: =IFERROR(IF(Ej_Betalat_Lån*Angivna_Värden,Ingående_Saldo,""), "") -> 4,334.59 kr | E22: =IFERROR(IF(Ej_Betalat_Lån*Angivna_Värden,Månadsbetalning,""), "") -> 95.51 kr | F22: =IFERROR(IF(Ej_Betalat_Lån*Angivna_Värden,Amortering,""), "") -> 75.64 kr | G22: =IFERROR(IF(Ej_Betalat_Lån*Angivna_Värden,Ränta,""), "") -> 19.87 kr | H22: =IFERROR(IF(Ej_Betalat_Lån*Angivna_Värden,Utgående_Saldo,""), "") -> 4,258.95 kr
B23: =IFERROR(IF(Ej_Betalat_Lån*Angivna_Värden,Betalningsnummer,""), "") -> 11 | C23: =IFERROR(IF(Ej_Betalat_Lån*Angivna_Värden,Betalningsdatum,""), "") -> 2021-03-15 | D23: =IFERROR(IF(Ej_Betalat_Lån*Angivna_Värden,Ingående_Saldo,""), "") -> 4,258.95 kr | E23: =IFERROR(IF(Ej_Betalat_Lån*Angivna_Värden,Månadsbetalning,""), "") -> 95.51 kr | F23: =IFERROR(IF(Ej_Betalat_Lån*Angivna_Värden,Amortering,""), "") -> 75.99 kr | G23: =IFERROR(IF(Ej_Betalat_Lån*Angivna_Värden,Ränta,""), "") -> 19.52 kr | H23: =IFERROR(IF(Ej_Betalat_Lån*Angivna_Värden,Utgående_Saldo,""), "") -> 4,182.97 kr
B24: =IFERROR(IF(Ej_Betalat_Lån*Angivna_Värden,Betalningsnummer,""), "") -> 12 | C24: =IFERROR(IF(Ej_Betalat_Lån*Angivna_Värden,Betalningsdatum,""), "") -> 2021-04-15 | D24: =IFERROR(IF(Ej_Betalat_Lån*Angivna_Värden,Ingående_Saldo,""), "") -> 4,182.97 kr | E24: =IFERROR(IF(Ej_Betalat_Lån*Angivna_Värden,Månadsbetalning,""), "") -> 95.51 kr | F24: =IFERROR(IF(Ej_Betalat_Lån*Angivna_Värden,Amortering,""), "") -> 76.33 kr | G24: =IFERROR(IF(Ej_Betalat_Lån*Angivna_Värden,Ränta,""), "") -> 19.17 kr | H24: =IFERROR(IF(Ej_Betalat_Lån*Angivna_Värden,Utgående_Saldo,""), "") -> 4,106.63 kr
B25: =IFERROR(IF(Ej_Betalat_Lån*Angivna_Värden,Betalningsnummer,""), "") -> 13 | C25: =IFERROR(IF(Ej_Betalat_Lån*Angivna_Värden,Betalningsdatum,""), "") -> 2021-05-15 | D25: =IFERROR(IF(Ej_Betalat_Lån*Angivna_Värden,Ingående_Saldo,""), "") -> 4,106.63 kr | E25: =IFERROR(IF(Ej_Betalat_Lån*Angivna_Värden,Månadsbetalning,""), "") -> 95.51 kr | F25: =IFERROR(IF(Ej_Betalat_Lån*Angivna_Värden,Amortering,""), "") -> 76.68 kr | G25: =IFERROR(IF(Ej_Betalat_Lån*Angivna_Värden,Ränta,""), "") -> 18.82 kr | H25: =IFERROR(IF(Ej_Betalat_Lån*Angivna_Värden,Utgående_Saldo,""), "") -> 4,029.95 kr
B26: =IFERROR(IF(Ej_Betalat_Lån*Angivna_Värden,Betalningsnummer,""), "") -> 14 | C26: =IFERROR(IF(Ej_Betalat_Lån*Angivna_Värden,Betalningsdatum,""), "") -> 2021-06-15 | D26: =IFERROR(IF(Ej_Betalat_Lån*Angivna_Värden,Ingående_Saldo,""), "") -> 4,029.95 kr | E26: =IFERROR(IF(Ej_Betalat_Lån*Angivna_Värden,Månadsbetalning,""), "") -> 95.51 kr | F26: =IFERROR(IF(Ej_Betalat_Lån*Angivna_Värden,Amortering,""), "") -> 77.04 kr | G26: =IFERROR(IF(Ej_Betalat_Lån*Angivna_Värden,Ränta,""), "") -> 18.47 kr | H26: =IFERROR(IF(Ej_Betalat_Lån*Angivna_Värden,Utgående_Saldo,""), "") -> 3,952.91 kr
B27: =IFERROR(IF(Ej_Betalat_Lån*Angivna_Värden,Betalningsnummer,""), "") -> 15 | C27: =IFERROR(IF(Ej_Betalat_Lån*Angivna_Värden,Betalningsdatum,""), "") -> 2021-07-15 | D27: =IFERROR(IF(Ej_Betalat_Lån*Angivna_Värden,Ingående_Saldo,""), "") -> 3,952.91 kr | E27: =IFERROR(IF(Ej_Betalat_Lån*Angivna_Värden,Månadsbetalning,""), "") -> 95.51 kr | F27: =IFERROR(IF(Ej_Betalat_Lån*Angivna_Värden,Amortering,""), "") -> 77.39 kr | G27: =IFERROR(IF(Ej_Betalat_Lån*Angivna_Värden,Ränta,""), "") -> 18.12 kr | H27: =IFERROR(IF(Ej_Betalat_Lån*Angivna_Värden,Utgående_Saldo,""), "") -> 3,875.53 kr
B28: =IFERROR(IF(Ej_Betalat_Lån*Angivna_Värden,Betalningsnummer,""), "") -> 16 | C28: =IFERROR(IF(Ej_Betalat_Lån*Angivna_Värden,Betalningsdatum,""), "") -> 2021-08-15 | D28: =IFERROR(IF(Ej_Betalat_Lån*Angivna_Värden,Ingående_Saldo,""), "") -> 3,875.53 kr | E28: =IFERROR(IF(Ej_Betalat_Lån*Angivna_Värden,Månadsbetalning,""), "") -> 95.51 kr | F28: =IFERROR(IF(Ej_Betalat_Lån*Angivna_Värden,Amortering,""), "") -> 77.74 kr | G28: =IFERROR(IF(Ej_Betalat_Lån*Angivna_Värden,Ränta,""), "") -> 17.76 kr | H28: =IFERROR(IF(Ej_Betalat_Lån*Angivna_Värden,Utgående_Saldo,""), "") -> 3,797.78 kr
B29: =IFERROR(IF(Ej_Betalat_Lån*Angivna_Värden,Betalningsnummer,""), "") -> 17 | C29: =IFERROR(IF(Ej_Betalat_Lån*Angivna_Värden,Betalningsdatum,""), "") -> 2021-09-15 | D29: =IFERROR(IF(Ej_Betalat_Lån*Angivna_Värden,Ingående_Saldo,""), "") -> 3,797.78 kr | E29: =IFERROR(IF(Ej_Betalat_Lån*Angivna_Värden,Månadsbetalning,""), "") -> 95.51 kr | F29: =IFERROR(IF(Ej_Betalat_Lån*Angivna_Värden,Amortering,""), "") -> 78.10 kr | G29: =IFERROR(IF(Ej_Betalat_Lån*Angivna_Värden,Ränta,""), "") -> 17.41 kr | H29: =IFERROR(IF(Ej_Betalat_Lån*Angivna_Värden,Utgående_Saldo,""), "") -> 3,719.68 kr
B30: =IFERROR(IF(Ej_Betalat_Lån*Angivna_Värden,Betalningsnummer,""), "") -> 18 | C30: =IFERROR(IF(Ej_Betalat_Lån*Angivna_Värden,Betalningsdatum,""), "") -> 2021-10-15 | D30: =IFERROR(IF(Ej_Betalat_Lån*Angivna_Värden,Ingående_Saldo,""), "") -> 3,719.68 kr | E30: =IFERROR(IF(Ej_Betalat_Lån*Angivna_Värden,Månadsbetalning,""), "") -> 95.51 kr | F30: =IFERROR(IF(Ej_Betalat_Lån*Angivna_Värden,Amortering,""), "") -> 78.46 kr | G30: =IFERROR(IF(Ej_Betalat_Lån*Angivna_Värden,Ränta,""), "") -> 17.05 kr | H30: =IFERROR(IF(Ej_Betalat_Lån*Angivna_Värden,Utgående_Saldo,""), "") -> 3,641.23 kr
B31: =IFERROR(IF(Ej_Betalat_Lån*Angivna_Värden,Betalningsnummer,""), "") -> 19 | C31: =IFERROR(IF(Ej_Betalat_Lån*Angivna_Värden,Betalningsdatum,""), "") -> 2021-11-15 | D31: =IFERROR(IF(Ej_Betalat_Lån*Angivna_Värden,Ingående_Saldo,""), "") -> 3,641.23 kr | E31: =IFERROR(IF(Ej_Betalat_Lån*Angivna_Värden,Månadsbetalning,""), "") -> 95.51 kr | F31: =IFERROR(IF(Ej_Betalat_Lån*Angivna_Värden,Amortering,""), "") -> 78.82 kr | G31: =IFERROR(IF(Ej_Betalat_Lån*Angivna_Värden,Ränta,""), "") -> 16.69 kr | H31: =IFERROR(IF(Ej_Betalat_Lån*Angivna_Värden,Utgående_Saldo,""), "") -> 3,562.41 kr
B32: =IFERROR(IF(Ej_Betalat_Lån*Angivna_Värden,Betalningsnummer,""), "") -> 20 | C32: =IFERROR(IF(Ej_Betalat_Lån*Angivna_Värden,Betalningsdatum,""), "") -> 2021-12-15 | D32: =IFERROR(IF(Ej_Betalat_Lån*Angivna_Värden,Ingående_Saldo,""), "") -> 3,562.41 kr | E32: =IFERROR(IF(Ej_Betalat_Lån*Angivna_Värden,Månadsbetalning,""), "") -> 95.51 kr | F32: =IFERROR(IF(Ej_Betalat_Lån*Angivna_Värden,Amortering,""), "") -> 79.18 kr | G32: =IFERROR(IF(Ej_Betalat_Lån*Angivna_Värden,Ränta,""), "") -> 16.33 kr | H32: =IFERROR(IF(Ej_Betalat_Lån*Angivna_Värden,Utgående_Saldo,""), "") -> 3,483.23 kr
B33: =IFERROR(IF(Ej_Betalat_Lån*Angivna_Värden,Betalningsnummer,""), "") -> 21 | C33: =IFERROR(IF(Ej_Betalat_Lån*Angivna_Värden,Betalningsdatum,""), "") -> 2022-01-15 | D33: =IFERROR(IF(Ej_Betalat_Lån*Angivna_Värden,Ingående_Saldo,""), "") -> 3,483.23 kr | E33: =IFERROR(IF(Ej_Betalat_Lån*Angivna_Värden,Månadsbetalning,""), "") -> 95.51 kr | F33: =IFERROR(IF(Ej_Betalat_Lån*Angivna_Värden,Amortering,""), "") -> 79.54 kr | G33: =IFERROR(IF(Ej_Betalat_Lån*Angivna_Värden,Ränta,""), "") -> 15.96 kr | H33: =IFERROR(IF(Ej_Betalat_Lån*Angivna_Värden,Utgående_Saldo,""), "") -> 3,403.69 kr
B34: =IFERROR(IF(Ej_Betalat_Lån*Angivna_Värden,Betalningsnummer,""), "") -> 22 | C34: =IFERROR(IF(Ej_Betalat_Lån*Angivna_Värden,Betalningsdatum,""), "") -> 2022-02-15 | D34: =IFERROR(IF(Ej_Betalat_Lån*Angivna_Värden,Ingående_Saldo,""), "") -> 3,403.69 kr | E34: =IFERROR(IF(Ej_Betalat_Lån*Angivna_Värden,Månadsbetalning,""), "") -> 95.51 kr | F34: =IFERROR(IF(Ej_Betalat_Lån*Angivna_Värden,Amortering,""), "") -> 79.91 kr | G34: =IFERROR(IF(Ej_Betalat_Lån*Angivna_Värden,Ränta,""), "") -> 15.60 kr | H34: =IFERROR(IF(Ej_Betalat_Lån*Angivna_Värden,Utgående_Saldo,""), "") -> 3,323.78 kr
B35: =IFERROR(IF(Ej_Betalat_Lån*Angivna_Värden,Betalningsnummer,""), "") -> 23 | C35: =IFERROR(IF(Ej_Betalat_Lån*Angivna_Värden,Betalningsdatum,""), "") -> 2022-03-15 | D35: =IFERROR(IF(Ej_Betalat_Lån*Angivna_Värden,Ingående_Saldo,""), "") -> 3,323.78 kr | E35: =IFERROR(IF(Ej_Betalat_Lån*Angivna_Värden,Månadsbetalning,""), "") -> 95.51 kr | F35: =IFERROR(IF(Ej_Betalat_Lån*Angivna_Värden,Amortering,""), "") -> 80.27 kr | G35: =IFERROR(IF(Ej_Betalat_Lån*Angivna_Värden,Ränta,""), "") -> 15.23 kr | H35: =IFERROR(IF(Ej_Betalat_Lån*Angivna_Värden,Utgående_Saldo,""), "") -> 3,243.51 kr
B36: =IFERROR(IF(Ej_Betalat_Lån*Angivna_Värden,Betalningsnummer,""), "") -> 24 | C36: =IFERROR(IF(Ej_Betalat_Lån*Angivna_Värden,Betalningsdatum,""), "") -> 2022-04-15 | D36: =IFERROR(IF(Ej_Betalat_Lån*Angivna_Värden,Ingående_Saldo,""), "") -> 3,243.51 kr | E36: =IFERROR(IF(Ej_Betalat_Lån*Angivna_Värden,Månadsbetalning,""), "") -> 95.51 kr | F36: =IFERROR(IF(Ej_Betalat_Lån*Angivna_Värden,Amortering,""), "") -> 80.64 kr | G36: =IFERROR(IF(Ej_Betalat_Lån*Angivna_Värden,Ränta,""), "") -> 14.87 kr | H36: =IFERROR(IF(Ej_Betalat_Lån*Angivna_Värden,Utgående_Saldo,""), "") -> 3,162.87 kr
B37: =IFERROR(IF(Ej_Betalat_Lån*Angivna_Värden,Betalningsnummer,""), "") -> 25 | C37: =IFERROR(IF(Ej_Betalat_Lån*Angivna_Värden,Betalningsdatum,""), "") -> 2022-05-15 | D37: =IFERROR(IF(Ej_Betalat_Lån*Angivna_Värden,Ingående_Saldo,""), "") -> 3,162.87 kr | E37: =IFERROR(IF(Ej_Betalat_Lån*Angivna_Värden,Månadsbetalning,""), "") -> 95.51 kr | F37: =IFERROR(IF(Ej_Betalat_Lån*Angivna_Värden,Amortering,""), "") -> 81.01 kr | G37: =IFERROR(IF(Ej_Betalat_Lån*Angivna_Värden,Ränta,""), "") -> 14.50 kr | H37: =IFERROR(IF(Ej_Betalat_Lån*Angivna_Värden,Utgående_Saldo,""), "") -> 3,081.86 kr
B38: =IFERROR(IF(Ej_Betalat_Lån*Angivna_Värden,Betalningsnummer,""), "") -> 26 | C38: =IFERROR(IF(Ej_Betalat_Lån*Angivna_Värden,Betalningsdatum,""), "") -> 2022-06-15 | D38: =IFERROR(IF(Ej_Betalat_Lån*Angivna_Värden,Ingående_Saldo,""), "") -> 3,081.86 kr | E38: =IFERROR(IF(Ej_Betalat_Lån*Angivna_Värden,Månadsbetalning,""), "") -> 95.51 kr | F38: =IFERROR(IF(Ej_Betalat_Lån*Angivna_Värden,Amortering,""), "") -> 81.38 kr | G38: =IFERROR(IF(Ej_Betalat_Lån*Angivna_Värden,Ränta,""), "") -> 14.13 kr | H38: =IFERROR(IF(Ej_Betalat_Lån*Angivna_Värden,Utgående_Saldo,""), "") -> 3,000.48 kr
B39: =IFERROR(IF(Ej_Betalat_Lån*Angivna_Värden,Betalningsnummer,""), "") -> 27 | C39: =IFERROR(IF(Ej_Betalat_Lån*Angivna_Värden,Betalningsdatum,""), "") -> 2022-07-15 | D39: =IFERROR(IF(Ej_Betalat_Lån*Angivna_Värden,Ingående_Saldo,""), "") -> 3,000.48 kr | E39: =IFERROR(IF(Ej_Betalat_Lån*Angivna_Värden,Månadsbetalning,""), "") -> 95.51 kr | F39: =IFERROR(IF(Ej_Betalat_Lån*Angivna_Värden,Amortering,""), "") -> 81.75 kr | G39: =IFERROR(IF(Ej_Betalat_Lån*Angivna_Värden,Ränta,""), "") -> 13.75 kr | H39: =IFERROR(IF(Ej_Betalat_Lån*Angivna_Värden,Utgående_Saldo,""), "") -> 2,918.73 kr
B40: =IFERROR(IF(Ej_Betalat_Lån*Angivna_Värden,Betalningsnummer,""), "") -> 28 | C40: =IFERROR(IF(Ej_Betalat_Lån*Angivna_Värden,Betalningsdatum,""), "") -> 2022-08-15 | D40: =IFERROR(IF(Ej_Betalat_Lån*Angivna_Värden,Ingående_Saldo,""), "") -> 2,918.73 kr | E40: =IFERROR(IF(Ej_Betalat_Lån*Angivna_Värden,Månadsbetalning,""), "") -> 95.51 kr | F40: =IFERROR(IF(Ej_Betalat_Lån*Angivna_Värden,Amortering,""), "") -> 82.13 kr | G40: =IFERROR(IF(Ej_Betalat_Lån*Angivna_Värden,Ränta,""), "") -> 13.38 kr | H40: =IFERROR(IF(Ej_Betalat_Lån*Angivna_Värden,Utgående_Saldo,""), "") -> 2,836.60 kr
B41: =IFERROR(IF(Ej_Betalat_Lån*Angivna_Värden,Betalningsnummer,""), "") -> 29 | C41: =IFERROR(IF(Ej_Betalat_Lån*Angivna_Värden,Betalningsdatum,""), "") -> 2022-09-15 | D41: =IFERROR(IF(Ej_Betalat_Lån*Angivna_Värden,Ingående_Saldo,""), "") -> 2,836.60 kr | E41: =IFERROR(IF(Ej_Betalat_Lån*Angivna_Värden,Månadsbetalning,""), "") -> 95.51 kr | F41: =IFERROR(IF(Ej_Betalat_Lån*Angivna_Värden,Amortering,""), "") -> 82.50 kr | G41: =IFERROR(IF(Ej_Betalat_Lån*Angivna_Värden,Ränta,""), "") -> 13.00 kr | H41: =IFERROR(IF(Ej_Betalat_Lån*Angivna_Värden,Utgående_Saldo,""), "") -> 2,754.10 kr
B42: =IFERROR(IF(Ej_Betalat_Lån*Angivna_Värden,Betalningsnummer,""), "") -> 30 | C42: =IFERROR(IF(Ej_Betalat_Lån*Angivna_Värden,Betalningsdatum,""), "") -> 2022-10-15 | D42: =IFERROR(IF(Ej_Betalat_Lån*Angivna_Värden,Ingående_Saldo,""), "") -> 2,754.10 kr | E42: =IFERROR(IF(Ej_Betalat_Lån*Angivna_Värden,Månadsbetalning,""), "") -> 95.51 kr | F42: =IFERROR(IF(Ej_Betalat_Lån*Angivna_Värden,Amortering,""), "") -> 82.88 kr | G42: =IFERROR(IF(Ej_Betalat_Lån*Angivna_Värden,Ränta,""), "") -> 12.62 kr | H42: =IFERROR(IF(Ej_Betalat_Lån*Angivna_Värden,Utgående_Saldo,""), "") -> 2,671.21 kr
B43: =IFERROR(IF(Ej_Betalat_Lån*Angivna_Värden,Betalningsnummer,""), "") -> 31 | C43: =IFERROR(IF(Ej_Betalat_Lån*Angivna_Värden,Betalningsdatum,""), "") -> 2022-11-15 | D43: =IFERROR(IF(Ej_Betalat_Lån*Angivna_Värden,Ingående_Saldo,""), "") -> 2,671.21 kr | E43: =IFERROR(IF(Ej_Betalat_Lån*Angivna_Värden,Månadsbetalning,""), "") -> 95.51 kr | F43: =IFERROR(IF(Ej_Betalat_Lån*Angivna_Värden,Amortering,""), "") -> 83.26 kr | G43: =IFERROR(IF(Ej_Betalat_Lån*Angivna_Värden,Ränta,""), "") -> 12.24 kr | H43: =IFERROR(IF(Ej_Betalat_Lån*Angivna_Värden,Utgående_Saldo,""), "") -> 2,587.95 kr
B44: =IFERROR(IF(Ej_Betalat_Lån*Angivna_Värden,Betalningsnummer,""), "") -> 32 | C44: =IFERROR(IF(Ej_Betalat_Lån*Angivna_Värden,Betalningsdatum,""), "") -> 2022-12-15 | D44: =IFERROR(IF(Ej_Betalat_Lån*Angivna_Värden,Ingående_Saldo,""), "") -> 2,587.95 kr | E44: =IFERROR(IF(Ej_Betalat_Lån*Angivna_Värden,Månadsbetalning,""), "") -> 95.51 kr | F44: =IFERROR(IF(Ej_Betalat_Lån*Angivna_Värden,Amortering,""), "") -> 83.64 kr | G44: =IFERROR(IF(Ej_Betalat_Lån*Angivna_Värden,Ränta,""), "") -> 11.86 kr | H44: =IFERROR(IF(Ej_Betalat_Lån*Angivna_Värden,Utgående_Saldo,""), "") -> 2,504.31 kr
B45: =IFERROR(IF(Ej_Betalat_Lån*Angivna_Värden,Betalningsnummer,""), "") -> 33 | C45: =IFERROR(IF(Ej_Betalat_Lån*Angivna_Värden,Betalningsdatum,""), "") -> 2023-01-15 | D45: =IFERROR(IF(Ej_Betalat_Lån*Angivna_Värden,Ingående_Saldo,""), "") -> 2,504.31 kr | E45: =IFERROR(IF(Ej_Betalat_Lån*Angivna_Värden,Månadsbetalning,""), "") -> 95.51 kr | F45: =IFERROR(IF(Ej_Betalat_Lån*Angivna_Värden,Amortering,""), "") -> 84.03 kr | G45: =IFERROR(IF(Ej_Betalat_Lån*Angivna_Värden,Ränta,""), "") -> 11.48 kr | H45: =IFERROR(IF(Ej_Betalat_Lån*Angivna_Värden,Utgående_Saldo,""), "") -> 2,420.28 kr
B46: =IFERROR(IF(Ej_Betalat_Lån*Angivna_Värden,Betalningsnummer,""), "") -> 34 | C46: =IFERROR(IF(Ej_Betalat_Lån*Angivna_Värden,Betalningsdatum,""), "") -> 2023-02-15 | D46: =IFERROR(IF(Ej_Betalat_Lån*Angivna_Värden,Ingående_Saldo,""), "") -> 2,420.28 kr | E46: =IFERROR(IF(Ej_Betalat_Lån*Angivna_Värden,Månadsbetalning,""), "") -> 95.51 kr | F46: =IFERROR(IF(Ej_Betalat_Lån*Angivna_Värden,Amortering,""), "") -> 84.41 kr | G46: =IFERROR(IF(Ej_Betalat_Lån*Angivna_Värden,Ränta,""), "") -> 11.09 kr | H46: =IFERROR(IF(Ej_Betalat_Lån*Angivna_Värden,Utgående_Saldo,""), "") -> 2,335.87 kr
B47: =IFERROR(IF(Ej_Betalat_Lån*Angivna_Värden,Betalningsnummer,""), "") -> 35 | C47: =IFERROR(IF(Ej_Betalat_Lån*Angivna_Värden,Betalningsdatum,""), "") -> 2023-03-15 | D47: =IFERROR(IF(Ej_Betalat_Lån*Angivna_Värden,Ingående_Saldo,""), "") -> 2,335.87 kr | E47: =IFERROR(IF(Ej_Betalat_Lån*Angivna_Värden,Månadsbetalning,""), "") -> 95.51 kr | F47: =IFERROR(IF(Ej_Betalat_Lån*Angivna_Värden,Amortering,""), "") -> 84.80 kr | G47: =IFERROR(IF(Ej_Betalat_Lån*Angivna_Värden,Ränta,""), "") -> 10.71 kr | H47: =IFERROR(IF(Ej_Betalat_Lån*Angivna_Värden,Utgående_Saldo,""), "") -> 2,251.07 kr
B48: =IFERROR(IF(Ej_Betalat_Lån*Angivna_Värden,Betalningsnummer,""), "") -> 36 | C48: =IFERROR(IF(Ej_Betalat_Lån*Angivna_Värden,Betalningsdatum,""), "") -> 2023-04-15 | D48: =IFERROR(IF(Ej_Betalat_Lån*Angivna_Värden,Ingående_Saldo,""), "") -> 2,251.07 kr | E48: =IFERROR(IF(Ej_Betalat_Lån*Angivna_Värden,Månadsbetalning,""), "") -> 95.51 kr | F48: =IFERROR(IF(Ej_Betalat_Lån*Angivna_Värden,Amortering,""), "") -> 85.19 kr | G48: =IFERROR(IF(Ej_Betalat_Lån*Angivna_Värden,Ränta,""), "") -> 10.32 kr | H48: =IFERROR(IF(Ej_Betalat_Lån*Angivna_Värden,Utgående_Saldo,""), "") -> 2,165.88 kr
B49: =IFERROR(IF(Ej_Betalat_Lån*Angivna_Värden,Betalningsnummer,""), "") -> 37 | C49: =IFERROR(IF(Ej_Betalat_Lån*Angivna_Värden,Betalningsdatum,""), "") -> 2023-05-15 | D49: =IFERROR(IF(Ej_Betalat_Lån*Angivna_Värden,Ingående_Saldo,""), "") -> 2,165.88 kr | E49: =IFERROR(IF(Ej_Betalat_Lån*Angivna_Värden,Månadsbetalning,""), "") -> 95.51 kr | F49: =IFERROR(IF(Ej_Betalat_Lån*Angivna_Värden,Amortering,""), "") -> 85.58 kr | G49: =IFERROR(IF(Ej_Betalat_Lån*Angivna_Värden,Ränta,""), "") -> 9.93 kr | H49: =IFERROR(IF(Ej_Betalat_Lån*Angivna_Värden,Utgående_Saldo,""), "") -> 2,080.30 kr
B50: =IFERROR(IF(Ej_Betalat_Lån*Angivna_Värden,Betalningsnummer,""), "") -> 38 | C50: =IFERROR(IF(Ej_Betalat_Lån*Angivna_Värden,Betalningsdatum,""), "") -> 2023-06-15 | D50: =IFERROR(IF(Ej_Betalat_Lån*Angivna_Värden,Ingående_Saldo,""), "") -> 2,080.30 kr | E50: =IFERROR(IF(Ej_Betalat_Lån*Angivna_Värden,Månadsbetalning,""), "") -> 95.51 kr | F50: =IFERROR(IF(Ej_Betalat_Lån*Angivna_Värden,Amortering,""), "") -> 85.97 kr | G50: =IFERROR(IF(Ej_Betalat_Lån*Angivna_Värden,Ränta,""), "") -> 9.53 kr | H50: =IFERROR(IF(Ej_Betalat_Lån*Angivna_Värden,Utgående_Saldo,""), "") -> 1,994.33 kr
B51: =IFERROR(IF(Ej_Betalat_Lån*Angivna_Värden,Betalningsnummer,""), "") -> 39 | C51: =IFERROR(IF(Ej_Betalat_Lån*Angivna_Värden,Betalningsdatum,""), "") -> 2023-07-15 | D51: =IFERROR(IF(Ej_Betalat_Lån*Angivna_Värden,Ingående_Saldo,""), "") -> 1,994.33 kr | E51: =IFERROR(IF(Ej_Betalat_Lån*Angivna_Värden,Månadsbetalning,""), "") -> 95.51 kr | F51: =IFERROR(IF(Ej_Betalat_Lån*Angivna_Värden,Amortering,""), "") -> 86.37 kr | G51: =IFERROR(IF(Ej_Betalat_Lån*Angivna_Värden,Ränta,""), "") -> 9.14 kr | H51: =IFERROR(IF(Ej_Betalat_Lån*Angivna_Värden,Utgående_Saldo,""), "") -> 1,907.96 kr
B52: =IFERROR(IF(Ej_Betalat_Lån*Angivna_Värden,Betalningsnummer,""), "") -> 40 | C52: =IFERROR(IF(Ej_Betalat_Lån*Angivna_Värden,Betalningsdatum,""), "") -> 2023-08-15 | D52: =IFERROR(IF(Ej_Betalat_Lån*Angivna_Värden,Ingående_Saldo,""), "") -> 1,907.96 kr | E52: =IFERROR(IF(Ej_Betalat_Lån*Angivna_Värden,Månadsbetalning,""), "") -> 95.51 kr | F52: =IFERROR(IF(Ej_Betalat_Lån*Angivna_Värden,Amortering,""), "") -> 86.76 kr | G52: =IFERROR(IF(Ej_Betalat_Lån*Angivna_Värden,Ränta,""), "") -> 8.74 kr | H52: =IFERROR(IF(Ej_Betalat_Lån*Angivna_Värden,Utgående_Saldo,""), "") -> 1,821.20 kr
B53: =IFERROR(IF(Ej_Betalat_Lån*Angivna_Värden,Betalningsnummer,""), "") -> 41 | C53: =IFERROR(IF(Ej_Betalat_Lån*Angivna_Värden,Betalningsdatum,""), "") -> 2023-09-15 | D53: =IFERROR(IF(Ej_Betalat_Lån*Angivna_Värden,Ingående_Saldo,""), "") -> 1,821.20 kr | E53: =IFERROR(IF(Ej_Betalat_Lån*Angivna_Värden,Månadsbetalning,""), "") -> 95.51 kr | F53: =IFERROR(IF(Ej_Betalat_Lån*Angivna_Värden,Amortering,""), "") -> 87.16 kr | G53: =IFERROR(IF(Ej_Betalat_Lån*Angivna_Värden,Ränta,""), "") -> 8.35 kr | H53: =IFERROR(IF(Ej_Betalat_Lån*Angivna_Värden,Utgående_Saldo,""), "") -> 1,734.04 kr
B54: =IFERROR(IF(Ej_Betalat_Lån*Angivna_Värden,Betalningsnummer,""), "") -> 42 | C54: =IFERROR(IF(Ej_Betalat_Lån*Angivna_Värden,Betalningsdatum,""), "") -> 2023-10-15 | D54: =IFERROR(IF(Ej_Betalat_Lån*Angivna_Värden,Ingående_Saldo,""), "") -> 1,734.04 kr | E54: =IFERROR(IF(Ej_Betalat_Lån*Angivna_Värden,Månadsbetalning,""), "") -> 95.51 kr | F54: =IFERROR(IF(Ej_Betalat_Lån*Angivna_Värden,Amortering,""), "") -> 87.56 kr | G54: =IFERROR(IF(Ej_Betalat_Lån*Angivna_Värden,Ränta,""), "") -> 7.95 kr | H54: =IFERROR(IF(Ej_Betalat_Lån*Angivna_Värden,Utgående_Saldo,""), "") -> 1,646.49 kr
B55: =IFERROR(IF(Ej_Betalat_Lån*Angivna_Värden,Betalningsnummer,""), "") -> 43 | C55: =IFERROR(IF(Ej_Betalat_Lån*Angivna_Värden,Betalningsdatum,""), "") -> 2023-11-15 | D55: =IFERROR(IF(Ej_Betalat_Lån*Angivna_Värden,Ingående_Saldo,""), "") -> 1,646.49 kr | E55: =IFERROR(IF(Ej_Betalat_Lån*Angivna_Värden,Månadsbetalning,""), "") -> 95.51 kr | F55: =IFERROR(IF(Ej_Betalat_Lån*Angivna_Värden,Amortering,""), "") -> 87.96 kr | G55: =IFERROR(IF(Ej_Betalat_Lån*Angivna_Värden,Ränta,""), "") -> 7.55 kr | H55: =IFERROR(IF(Ej_Betalat_Lån*Angivna_Värden,Utgående_Saldo,""), "") -> 1,558.53 kr
B56: =IFERROR(IF(Ej_Betalat_Lån*Angivna_Värden,Betalningsnummer,""), "") -> 44 | C56: =IFERROR(IF(Ej_Betalat_Lån*Angivna_Värden,Betalningsdatum,""), "") -> 2023-12-15 | D56: =IFERROR(IF(Ej_Betalat_Lån*Angivna_Värden,Ingående_Saldo,""), "") -> 1,558.53 kr | E56: =IFERROR(IF(Ej_Betalat_Lån*Angivna_Värden,Månadsbetalning,""), "") -> 95.51 kr | F56: =IFERROR(IF(Ej_Betalat_Lån*Angivna_Värden,Amortering,""), "") -> 88.36 kr | G56: =IFERROR(IF(Ej_Betalat_Lån*Angivna_Värden,Ränta,""), "") -> 7.14 kr | H56: =IFERROR(IF(Ej_Betalat_Lån*Angivna_Värden,Utgående_Saldo,""), "") -> 1,470.16 kr
B57: =IFERROR(IF(Ej_Betalat_Lån*Angivna_Värden,Betalningsnummer,""), "") -> 45 | C57: =IFERROR(IF(Ej_Betalat_Lån*Angivna_Värden,Betalningsdatum,""), "") -> 2024-01-15 | D57: =IFERROR(IF(Ej_Betalat_Lån*Angivna_Värden,Ingående_Saldo,""), "") -> 1,470.16 kr | E57: =IFERROR(IF(Ej_Betalat_Lån*Angivna_Värden,Månadsbetalning,""), "") -> 95.51 kr | F57: =IFERROR(IF(Ej_Betalat_Lån*Angivna_Värden,Amortering,""), "") -> 88.77 kr | G57: =IFERROR(IF(Ej_Betalat_Lån*Angivna_Värden,Ränta,""), "") -> 6.74 kr | H57: =IFERROR(IF(Ej_Betalat_Lån*Angivna_Värden,Utgående_Saldo,""), "") -> 1,381.40 kr
B58: =IFERROR(IF(Ej_Betalat_Lån*Angivna_Värden,Betalningsnummer,""), "") -> 46 | C58: =IFERROR(IF(Ej_Betalat_Lån*Angivna_Värden,Betalningsdatum,""), "") -> 2024-02-15 | D58: =IFERROR(IF(Ej_Betalat_Lån*Angivna_Värden,Ingående_Saldo,""), "") -> 1,381.40 kr | E58: =IFERROR(IF(Ej_Betalat_Lån*Angivna_Värden,Månadsbetalning,""), "") -> 95.51 kr | F58: =IFERROR(IF(Ej_Betalat_Lån*Angivna_Värden,Amortering,""), "") -> 89.17 kr | G58: =IFERROR(IF(Ej_Betalat_Lån*Angivna_Värden,Ränta,""), "") -> 6.33 kr | H58: =IFERROR(IF(Ej_Betalat_Lån*Angivna_Värden,Utgående_Saldo,""), "") -> 1,292.22 kr
B59: =IFERROR(IF(Ej_Betalat_Lån*Angivna_Värden,Betalningsnummer,""), "") -> 47 | C59: =IFERROR(IF(Ej_Betalat_Lån*Angivna_Värden,Betalningsdatum,""), "") -> 2024-03-15 | D59: =IFERROR(IF(Ej_Betalat_Lån*Angivna_Värden,Ingående_Saldo,""), "") -> 1,292.22 kr | E59: =IFERROR(IF(Ej_Betalat_Lån*Angivna_Värden,Månadsbetalning,""), "") -> 95.51 kr | F59: =IFERROR(IF(Ej_Betalat_Lån*Angivna_Värden,Amortering,""), "") -> 89.58 kr | G59: =IFERROR(IF(Ej_Betalat_Lån*Angivna_Värden,Ränta,""), "") -> 5.92 kr | H59: =IFERROR(IF(Ej_Betalat_Lån*Angivna_Värden,Utgående_Saldo,""), "") -> 1,202.64 kr
B60: =IFERROR(IF(Ej_Betalat_Lån*Angivna_Värden,Betalningsnummer,""), "") -> 48 | C60: =IFERROR(IF(Ej_Betalat_Lån*Angivna_Värden,Betalningsdatum,""), "") -> 2024-04-15 | D60: =IFERROR(IF(Ej_Betalat_Lån*Angivna_Värden,Ingående_Saldo,""), "") -> 1,202.64 kr | E60: =IFERROR(IF(Ej_Betalat_Lån*Angivna_Värden,Månadsbetalning,""), "") -> 95.51 kr | F60: =IFERROR(IF(Ej_Betalat_Lån*Angivna_Värden,Amortering,""), "") -> 89.99 kr | G60: =IFERROR(IF(Ej_Betalat_Lån*Angivna_Värden,Ränta,""), "") -> 5.51 kr | H60: =IFERROR(IF(Ej_Betalat_Lån*Angivna_Värden,Utgående_Saldo,""), "") -> 1,112.64 kr
B61: =IFERROR(IF(Ej_Betalat_Lån*Angivna_Värden,Betalningsnummer,""), "") -> 49 | C61: =IFERROR(IF(Ej_Betalat_Lån*Angivna_Värden,Betalningsdatum,""), "") -> 2024-05-15 | D61: =IFERROR(IF(Ej_Betalat_Lån*Angivna_Värden,Ingående_Saldo,""), "") -> 1,112.64 kr | E61: =IFERROR(IF(Ej_Betalat_Lån*Angivna_Värden,Månadsbetalning,""), "") -> 95.51 kr | F61: =IFERROR(IF(Ej_Betalat_Lån*Angivna_Värden,Amortering,""), "") -> 90.41 kr | G61: =IFERROR(IF(Ej_Betalat_Lån*Angivna_Värden,Ränta,""), "") -> 5.10 kr | H61: =IFERROR(IF(Ej_Betalat_Lån*Angivna_Värden,Utgående_Saldo,""), "") -> 1,022.24 kr
B62: =IFERROR(IF(Ej_Betalat_Lån*Angivna_Värden,Betalningsnummer,""), "") -> 50 | C62: =IFERROR(IF(Ej_Betalat_Lån*Angivna_Värden,Betalningsdatum,""), "") -> 2024-06-15 | D62: =IFERROR(IF(Ej_Betalat_Lån*Angivna_Värden,Ingående_Saldo,""), "") -> 1,022.24 kr | E62: =IFERROR(IF(Ej_Betalat_Lån*Angivna_Värden,Månadsbetalning,""), "") -> 95.51 kr | F62: =IFERROR(IF(Ej_Betalat_Lån*Angivna_Värden,Amortering,""), "") -> 90.82 kr | G62: =IFERROR(IF(Ej_Betalat_Lån*Angivna_Värden,Ränta,""), "") -> 4.69 kr | H62: =IFERROR(IF(Ej_Betalat_Lån*Angivna_Värden,Utgående_Saldo,""), "") -> 931.42 kr
B63: =IFERROR(IF(Ej_Betalat_Lån*Angivna_Värden,Betalningsnummer,""), "") -> 51 | C63: =IFERROR(IF(Ej_Betalat_Lån*Angivna_Värden,Betalningsdatum,""), "") -> 2024-07-15 | D63: =IFERROR(IF(Ej_Betalat_Lån*Angivna_Värden,Ingående_Saldo,""), "") -> 931.42 kr | E63: =IFERROR(IF(Ej_Betalat_Lån*Angivna_Värden,Månadsbetalning,""), "") -> 95.51 kr | F63: =IFERROR(IF(Ej_Betalat_Lån*Angivna_Värden,Amortering,""), "") -> 91.24 kr | G63: =IFERROR(IF(Ej_Betalat_Lån*Angivna_Värden,Ränta,""), "") -> 4.27 kr | H63: =IFERROR(IF(Ej_Betalat_Lån*Angivna_Värden,Utgående_Saldo,""), "") -> 840.18 kr
B64: =IFERROR(IF(Ej_Betalat_Lån*Angivna_Värden,Betalningsnummer,""), "") -> 52 | C64: =IFERROR(IF(Ej_Betalat_Lån*Angivna_Värden,Betalningsdatum,""), "") -> 2024-08-15 | D64: =IFERROR(IF(Ej_Betalat_Lån*Angivna_Värden,Ingående_Saldo,""), "") -> 840.18 kr | E64: =IFERROR(IF(Ej_Betalat_Lån*Angivna_Värden,Månadsbetalning,""), "") -> 95.51 kr | F64: =IFERROR(IF(Ej_Betalat_Lån*Angivna_Värden,Amortering,""), "") -> 91.65 kr | G64: =IFERROR(IF(Ej_Betalat_Lån*Angivna_Värden,Ränta,""), "") -> 3.85 kr | H64: =IFERROR(IF(Ej_Betalat_Lån*Angivna_Värden,Utgående_Saldo,""), "") -> 748.53 kr
B65: =IFERROR(IF(Ej_Betalat_Lån*Angivna_Värden,Betalningsnummer,""), "") -> 53 | C65: =IFERROR(IF(Ej_Betalat_Lån*Angivna_Värden,Betalningsdatum,""), "") -> 2024-09-15 | D65: =IFERROR(IF(Ej_Betalat_Lån*Angivna_Värden,Ingående_Saldo,""), "") -> 748.53 kr | E65: =IFERROR(IF(Ej_Betalat_Lån*Angivna_Värden,Månadsbetalning,""), "") -> 95.51 kr | F65: =IFERROR(IF(Ej_Betalat_Lån*Angivna_Värden,Amortering,""), "") -> 92.08 kr | G65: =IFERROR(IF(Ej_Betalat_Lån*Angivna_Värden,Ränta,""), "") -> 3.43 kr | H65: =IFERROR(IF(Ej_Betalat_Lån*Angivna_Värden,Utgående_Saldo,""), "") -> 656.45 kr
B66: =IFERROR(IF(Ej_Betalat_Lån*Angivna_Värden,Betalningsnummer,""), "") -> 54 | C66: =IFERROR(IF(Ej_Betalat_Lån*Angivna_Värden,Betalningsdatum,""), "") -> 2024-10-15 | D66: =IFERROR(IF(Ej_Betalat_Lån*Angivna_Värden,Ingående_Saldo,""), "") -> 656.45 kr | E66: =IFERROR(IF(Ej_Betalat_Lån*Angivna_Värden,Månadsbetalning,""), "") -> 95.51 kr | F66: =IFERROR(IF(Ej_Betalat_Lån*Angivna_Värden,Amortering,""), "") -> 92.50 kr | G66: =IFERROR(IF(Ej_Betalat_Lån*Angivna_Värden,Ränta,""), "") -> 3.01 kr | H66: =IFERROR(IF(Ej_Betalat_Lån*Angivna_Värden,Utgående_Saldo,""), "") -> 563.95 kr
B67: =IFERROR(IF(Ej_Betalat_Lån*Angivna_Värden,Betalningsnummer,""), "") -> 55 | C67: =IFERROR(IF(Ej_Betalat_Lån*Angivna_Värden,Betalningsdatum,""), "") -> 2024-11-15 | D67: =IFERROR(IF(Ej_Betalat_Lån*Angivna_Värden,Ingående_Saldo,""), "") -> 563.95 kr | E67: =IFERROR(IF(Ej_Betalat_Lån*Angivna_Värden,Månadsbetalning,""), "") -> 95.51 kr | F67: =IFERROR(IF(Ej_Betalat_Lån*Angivna_Värden,Amortering,""), "") -> 92.92 kr | G67: =IFERROR(IF(Ej_Betalat_Lån*Angivna_Värden,Ränta,""), "") -> 2.58 kr | H67: =IFERROR(IF(Ej_Betalat_Lån*Angivna_Värden,Utgående_Saldo,""), "") -> 471.03 kr
B68: =IFERROR(IF(Ej_Betalat_Lån*Angivna_Värden,Betalningsnummer,""), "") -> 56 | C68: =IFERROR(IF(Ej_Betalat_Lån*Angivna_Värden,Betalningsdatum,""), "") -> 2024-12-15 | D68: =IFERROR(IF(Ej_Betalat_Lån*Angivna_Värden,Ingående_Saldo,""), "") -> 471.03 kr | E68: =IFERROR(IF(Ej_Betalat_Lån*Angivna_Värden,Månadsbetalning,""), "") -> 95.51 kr | F68: =IFERROR(IF(Ej_Betalat_Lån*Angivna_Värden,Amortering,""), "") -> 93.35 kr | G68: =IFERROR(IF(Ej_Betalat_Lån*Angivna_Värden,Ränta,""), "") -> 2.16 kr | H68: =IFERROR(IF(Ej_Betalat_Lån*Angivna_Värden,Utgående_Saldo,""), "") -> 377.69 kr
B69: =IFERROR(IF(Ej_Betalat_Lån*Angivna_Värden,Betalningsnummer,""), "") -> 57 | C69: =IFERROR(IF(Ej_Betalat_Lån*Angivna_Värden,Betalningsdatum,""), "") -> 2025-01-15 | D69: =IFERROR(IF(Ej_Betalat_Lån*Angivna_Värden,Ingående_Saldo,""), "") -> 377.69 kr | E69: =IFERROR(IF(Ej_Betalat_Lån*Angivna_Värden,Månadsbetalning,""), "") -> 95.51 kr | F69: =IFERROR(IF(Ej_Betalat_Lån*Angivna_Värden,Amortering,""), "") -> 93.77 kr | G69: =IFERROR(IF(Ej_Betalat_Lån*Angivna_Värden,Ränta,""), "") -> 1.73 kr | H69: =IFERROR(IF(Ej_Betalat_Lån*Angivna_Värden,Utgående_Saldo,""), "") -> 283.91 kr
B70: =IFERROR(IF(Ej_Betalat_Lån*Angivna_Värden,Betalningsnummer,""), "") -> 58 | C70: =IFERROR(IF(Ej_Betalat_Lån*Angivna_Värden,Betalningsdatum,""), "") -> 2025-02-15 | D70: =IFERROR(IF(Ej_Betalat_Lån*Angivna_Värden,Ingående_Saldo,""), "") -> 283.91 kr | E70: =IFERROR(IF(Ej_Betalat_Lån*Angivna_Värden,Månadsbetalning,""), "") -> 95.51 kr | F70: =IFERROR(IF(Ej_Betalat_Lån*Angivna_Värden,Amortering,""), "") -> 94.20 kr | G70: =IFERROR(IF(Ej_Betalat_Lån*Angivna_Värden,Ränta,""), "") -> 1.30 kr | H70: =IFERROR(IF(Ej_Betalat_Lån*Angivna_Värden,Utgående_Saldo,""), "") -> 189.71 kr
B71: =IFERROR(IF(Ej_Betalat_Lån*Angivna_Värden,Betalningsnummer,""), "") -> 59 | C71: =IFERROR(IF(Ej_Betalat_Lån*Angivna_Värden,Betalningsdatum,""), "") -> 2025-03-15 | D71: =IFERROR(IF(Ej_Betalat_Lån*Angivna_Värden,Ingående_Saldo,""), "") -> 189.71 kr | E71: =IFERROR(IF(Ej_Betalat_Lån*Angivna_Värden,Månadsbetalning,""), "") -> 95.51 kr | F71: =IFERROR(IF(Ej_Betalat_Lån*Angivna_Värden,Amortering,""), "") -> 94.64 kr | G71: =IFERROR(IF(Ej_Betalat_Lån*Angivna_Värden,Ränta,""), "") -> 0.87 kr | H71: =IFERROR(IF(Ej_Betalat_Lån*Angivna_Värden,Utgående_Saldo,""), "") -> 95.07 kr
B72: =IFERROR(IF(Ej_Betalat_Lån*Angivna_Värden,Betalningsnummer,""), "") -> 60 | C72: =IFERROR(IF(Ej_Betalat_Lån*Angivna_Värden,Betalningsdatum,""), "") -> 2025-04-15 | D72: =IFERROR(IF(Ej_Betalat_Lån*Angivna_Värden,Ingående_Saldo,""), "") -> 95.07 kr | E72: =IFERROR(IF(Ej_Betalat_Lån*Angivna_Värden,Månadsbetalning,""), "") -> 95.51 kr | F72: =IFERROR(IF(Ej_Betalat_Lån*Angivna_Värden,Amortering,""), "") -> 95.07 kr | G72: =IFERROR(IF(Ej_Betalat_Lån*Angivna_Värden,Ränta,""), "") -> 0.44 kr | H72: =IFERROR(IF(Ej_Betalat_Lån*Angivna_Värden,Utgående_Saldo,""), "") -> -0.00 kr
B73: =IFERROR(IF(Ej_Betalat_Lån*Angivna_Värden,Betalningsnummer,""), "") ->  | C73: =IFERROR(IF(Ej_Betalat_Lån*Angivna_Värden,Betalningsdatum,""), "") ->  | D73: =IFERROR(IF(Ej_Betalat_Lån*Angivna_Värden,Ingående_Saldo,""), "") ->  | E73: =IFERROR(IF(Ej_Betalat_Lån*Angivna_Värden,Månadsbetalning,""), "") ->  | F73: =IFERROR(IF(Ej_Betalat_Lån*Angivna_Värden,Amortering,""), "") ->  | G73: =IFERROR(IF(Ej_Betalat_Lån*Angivna_Värden,Ränta,""), "") ->  | H73: =IFERROR(IF(Ej_Betalat_Lån*Angivna_Värden,Utgående_Saldo,""), "") -> 
B74: =IFERROR(IF(Ej_Betalat_Lån*Angivna_Värden,Betalningsnummer,""), "") ->  | C74: =IFERROR(IF(Ej_Betalat_Lån*Angivna_Värden,Betalningsdatum,""), "") ->  | D74: =IFERROR(IF(Ej_Betalat_Lån*Angivna_Värden,Ingående_Saldo,""), "") ->  | E74: =IFERROR(IF(Ej_Betalat_Lån*Angivna_Värden,Månadsbetalning,""), "") ->  | F74: =IFERROR(IF(Ej_Betalat_Lån*Angivna_Värden,Amortering,""), "") ->  | G74: =IFERROR(IF(Ej_Betalat_Lån*Angivna_Värden,Ränta,""), "") ->  | H74: =IFERROR(IF(Ej_Betalat_Lån*Angivna_Värden,Utgående_Saldo,""), "") -> 
B75: =IFERROR(IF(Ej_Betalat_Lån*Angivna_Värden,Betalningsnummer,""), "") ->  | C75: =IFERROR(IF(Ej_Betalat_Lån*Angivna_Värden,Betalningsdatum,""), "") ->  | D75: =IFERROR(IF(Ej_Betalat_Lån*Angivna_Värden,Ingående_Saldo,""), "") ->  | E75: =IFERROR(IF(Ej_Betalat_Lån*Angivna_Värden,Månadsbetalning,""), "") ->  | F75: =IFERROR(IF(Ej_Betalat_Lån*Angivna_Värden,Amortering,""), "") ->  | G75: =IFERROR(IF(Ej_Betalat_Lån*Angivna_Värden,Ränta,""), "") ->  | H75: =IFERROR(IF(Ej_Betalat_Lån*Angivna_Värden,Utgående_Saldo,""), "") -> 
B76: =IFERROR(IF(Ej_Betalat_Lån*Angivna_Värden,Betalningsnummer,""), "") ->  | C76: =IFERROR(IF(Ej_Betalat_Lån*Angivna_Värden,Betalningsdatum,""), "") ->  | D76: =IFERROR(IF(Ej_Betalat_Lån*Angivna_Värden,Ingående_Saldo,""), "") ->  | E76: =IFERROR(IF(Ej_Betalat_Lån*Angivna_Värden,Månadsbetalning,""), "") ->  | F76: =IFERROR(IF(Ej_Betalat_Lån*Angivna_Värden,Amortering,""), "") ->  | G76: =IFERROR(IF(Ej_Betalat_Lån*Angivna_Värden,Ränta,""), "") ->  | H76: =IFERROR(IF(Ej_Betalat_Lån*Angivna_Värden,Utgående_Saldo,""), "") -> 
B77: =IFERROR(IF(Ej_Betalat_Lån*Angivna_Värden,Betalningsnummer,""), "") ->  | C77: =IFERROR(IF(Ej_Betalat_Lån*Angivna_Värden,Betalningsdatum,""), "") ->  | D77: =IFERROR(IF(Ej_Betalat_Lån*Angivna_Värden,Ingående_Saldo,""), "") ->  | E77: =IFERROR(IF(Ej_Betalat_Lån*Angivna_Värden,Månadsbetalning,""), "") ->  | F77: =IFERROR(IF(Ej_Betalat_Lån*Angivna_Värden,Amortering,""), "") ->  | G77: =IFERROR(IF(Ej_Betalat_Lån*Angivna_Värden,Ränta,""), "") ->  | H77: =IFERROR(IF(Ej_Betalat_Lån*Angivna_Värden,Utgående_Saldo,""), "") -> 
B78: =IFERROR(IF(Ej_Betalat_Lån*Angivna_Värden,Betalningsnummer,""), "") ->  | C78: =IFERROR(IF(Ej_Betalat_Lån*Angivna_Värden,Betalningsdatum,""), "") ->  | D78: =IFERROR(IF(Ej_Betalat_Lån*Angivna_Värden,Ingående_Saldo,""), "") ->  | E78: =IFERROR(IF(Ej_Betalat_Lån*Angivna_Värden,Månadsbetalning,""), "") ->  | F78: =IFERROR(IF(Ej_Betalat_Lån*Angivna_Värden,Amortering,""), "") ->  | G78: =IFERROR(IF(Ej_Betalat_Lån*Angivna_Värden,Ränta,""), "") ->  | H78: =IFERROR(IF(Ej_Betalat_Lån*Angivna_Värden,Utgående_Saldo,""), "") -> 
B79: =IFERROR(IF(Ej_Betalat_Lån*Angivna_Värden,Betalningsnummer,""), "") ->  | C79: =IFERROR(IF(Ej_Betalat_Lån*Angivna_Värden,Betalningsdatum,""), "") ->  | D79: =IFERROR(IF(Ej_Betalat_Lån*Angivna_Värden,Ingående_Saldo,""), "") ->  | E79: =IFERROR(IF(Ej_Betalat_Lån*Angivna_Värden,Månadsbetalning,""), "") ->  | F79: =IFERROR(IF(Ej_Betalat_Lån*Angivna_Värden,Amortering,""), "") ->  | G79: =IFERROR(IF(Ej_Betalat_Lån*Angivna_Värden,Ränta,""), "") ->  | H79: =IFERROR(IF(Ej_Betalat_Lån*Angivna_Värden,Utgående_Saldo,""), "") -> 
B80: =IFERROR(IF(Ej_Betalat_Lån*Angivna_Värden,Betalningsnummer,""), "") ->  | C80: =IFERROR(IF(Ej_Betalat_Lån*Angivna_Värden,Betalningsdatum,""), "") ->  | D80: =IFERROR(IF(Ej_Betalat_Lån*Angivna_Värden,Ingående_Saldo,""), "") ->  | E80: =IFERROR(IF(Ej_Betalat_Lån*Angivna_Värden,Månadsbetalning,""), "") ->  | F80: =IFERROR(IF(Ej_Betalat_Lån*Angivna_Värden,Amortering,""), "") ->  | G80: =IFERROR(IF(Ej_Betalat_Lån*Angivna_Värden,Ränta,""), "") ->  | H80: =IFERROR(IF(Ej_Betalat_Lån*Angivna_Värden,Utgående_Saldo,""), "") -> 
B81: =IFERROR(IF(Ej_Betalat_Lån*Angivna_Värden,Betalningsnummer,""), "") ->  | C81: =IFERROR(IF(Ej_Betalat_Lån*Angivna_Värden,Betalningsdatum,""), "") ->  | D81: =IFERROR(IF(Ej_Betalat_Lån*Angivna_Värden,Ingående_Saldo,""), "") ->  | E81: =IFERROR(IF(Ej_Betalat_Lån*Angivna_Värden,Månadsbetalning,""), "") ->  | F81: =IFERROR(IF(Ej_Betalat_Lån*Angivna_Värden,Amortering,""), "") ->  | G81: =IFERROR(IF(Ej_Betalat_Lån*Angivna_Värden,Ränta,""), "") ->  | H81: =IFERROR(IF(Ej_Betalat_Lån*Angivna_Värden,Utgående_Saldo,""), "") -> 
B82: =IFERROR(IF(Ej_Betalat_Lån*Angivna_Värden,Betalningsnummer,""), "") ->  | C82: =IFERROR(IF(Ej_Betalat_Lån*Angivna_Värden,Betalningsdatum,""), "") ->  | D82: =IFERROR(IF(Ej_Betalat_Lån*Angivna_Värden,Ingående_Saldo,""), "") ->  | E82: =IFERROR(IF(Ej_Betalat_Lån*Angivna_Värden,Månadsbetalning,""), "") ->  | F82: =IFERROR(IF(Ej_Betalat_Lån*Angivna_Värden,Amortering,""), "") ->  | G82: =IFERROR(IF(Ej_Betalat_Lån*Angivna_Värden,Ränta,""), "") ->  | H82: =IFERROR(IF(Ej_Betalat_Lån*Angivna_Värden,Utgående_Saldo,""), "") -> 
B83: =IFERROR(IF(Ej_Betalat_Lån*Angivna_Värden,Betalningsnummer,""), "") ->  | C83: =IFERROR(IF(Ej_Betalat_Lån*Angivna_Värden,Betalningsdatum,""), "") ->  | D83: =IFERROR(IF(Ej_Betalat_Lån*Angivna_Värden,Ingående_Saldo,""), "") ->  | E83: =IFERROR(IF(Ej_Betalat_Lån*Angivna_Värden,Månadsbetalning,""), "") ->  | F83: =IFERROR(IF(Ej_Betalat_Lån*Angivna_Värden,Amortering,""), "") ->  | G83: =IFERROR(IF(Ej_Betalat_Lån*Angivna_Värden,Ränta,""), "") ->  | H83: =IFERROR(IF(Ej_Betalat_Lån*Angivna_Värden,Utgående_Saldo,""), "") -> 
B84: =IFERROR(IF(Ej_Betalat_Lån*Angivna_Värden,Betalningsnummer,""), "") ->  | C84: =IFERROR(IF(Ej_Betalat_Lån*Angivna_Värden,Betalningsdatum,""), "") ->  | D84: =IFERROR(IF(Ej_Betalat_Lån*Angivna_Värden,Ingående_Saldo,""), "") ->  | E84: =IFERROR(IF(Ej_Betalat_Lån*Angivna_Värden,Månadsbetalning,""), "") ->  | F84: =IFERROR(IF(Ej_Betalat_Lån*Angivna_Värden,Amortering,""), "") ->  | G84: =IFERROR(IF(Ej_Betalat_Lån*Angivna_Värden,Ränta,""), "") ->  | H84: =IFERROR(IF(Ej_Betalat_Lån*Angivna_Värden,Utgående_Saldo,""), "") -> 
B85: =IFERROR(IF(Ej_Betalat_Lån*Angivna_Värden,Betalningsnummer,""), "") ->  | C85: =IFERROR(IF(Ej_Betalat_Lån*Angivna_Värden,Betalningsdatum,""), "") ->  | D85: =IFERROR(IF(Ej_Betalat_Lån*Angivna_Värden,Ingående_Saldo,""), "") ->  | E85: =IFERROR(IF(Ej_Betalat_Lån*Angivna_Värden,Månadsbetalning,""), "") ->  | F85: =IFERROR(IF(Ej_Betalat_Lån*Angivna_Värden,Amortering,""), "") ->  | G85: =IFERROR(IF(Ej_Betalat_Lån*Angivna_Värden,Ränta,""), "") ->  | H85: =IFERROR(IF(Ej_Betalat_Lån*Angivna_Värden,Utgående_Saldo,""), "") -> 
B86: =IFERROR(IF(Ej_Betalat_Lån*Angivna_Värden,Betalningsnummer,""), "") ->  | C86: =IFERROR(IF(Ej_Betalat_Lån*Angivna_Värden,Betalningsdatum,""), "") ->  | D86: =IFERROR(IF(Ej_Betalat_Lån*Angivna_Värden,Ingående_Saldo,""), "") ->  | E86: =IFERROR(IF(Ej_Betalat_Lån*Angivna_Värden,Månadsbetalning,""), "") ->  | F86: =IFERROR(IF(Ej_Betalat_Lån*Angivna_Värden,Amortering,""), "") ->  | G86: =IFERROR(IF(Ej_Betalat_Lån*Angivna_Värden,Ränta,""), "") ->  | H86: =IFERROR(IF(Ej_Betalat_Lån*Angivna_Värden,Utgående_Saldo,""), "") -> 
B87: =IFERROR(IF(Ej_Betalat_Lån*Angivna_Värden,Betalningsnummer,""), "") ->  | C87: =IFERROR(IF(Ej_Betalat_Lån*Angivna_Värden,Betalningsdatum,""), "") ->  | D87: =IFERROR(IF(Ej_Betalat_Lån*Angivna_Värden,Ingående_Saldo,""), "") ->  | E87: =IFERROR(IF(Ej_Betalat_Lån*Angivna_Värden,Månadsbetalning,""), "") ->  | F87: =IFERROR(IF(Ej_Betalat_Lån*Angivna_Värden,Amortering,""), "") ->  | G87: =IFERROR(IF(Ej_Betalat_Lån*Angivna_Värden,Ränta,""), "") ->  | H87: =IFERROR(IF(Ej_Betalat_Lån*Angivna_Värden,Utgående_Saldo,""), "") -> 
B88: =IFERROR(IF(Ej_Betalat_Lån*Angivna_Värden,Betalningsnummer,""), "") ->  | C88: =IFERROR(IF(Ej_Betalat_Lån*Angivna_Värden,Betalningsdatum,""), "") ->  | D88: =IFERROR(IF(Ej_Betalat_Lån*Angivna_Värden,Ingående_Saldo,""), "") ->  | E88: =IFERROR(IF(Ej_Betalat_Lån*Angivna_Värden,Månadsbetalning,""), "") ->  | F88: =IFERROR(IF(Ej_Betalat_Lån*Angivna_Värden,Amortering,""), "") ->  | G88: =IFERROR(IF(Ej_Betalat_Lån*Angivna_Värden,Ränta,""), "") ->  | H88: =IFERROR(IF(Ej_Betalat_Lån*Angivna_Värden,Utgående_Saldo,""), "") -> 
B89: =IFERROR(IF(Ej_Betalat_Lån*Angivna_Värden,Betalningsnummer,""), "") ->  | C89: =IFERROR(IF(Ej_Betalat_Lån*Angivna_Värden,Betalningsdatum,""), "") ->  | D89: =IFERROR(IF(Ej_Betalat_Lån*Angivna_Värden,Ingående_Saldo,""), "") ->  | E89: =IFERROR(IF(Ej_Betalat_Lån*Angivna_Värden,Månadsbetalning,""), "") ->  | F89: =IFERROR(IF(Ej_Betalat_Lån*Angivna_Värden,Amortering,""), "") ->  | G89: =IFERROR(IF(Ej_Betalat_Lån*Angivna_Värden,Ränta,""), "") ->  | H89: =IFERROR(IF(Ej_Betalat_Lån*Angivna_Värden,Utgående_Saldo,""), "") -> 
B90: =IFERROR(IF(Ej_Betalat_Lån*Angivna_Värden,Betalningsnummer,""), "") ->  | C90: =IFERROR(IF(Ej_Betalat_Lån*Angivna_Värden,Betalningsdatum,""), "") ->  | D90: =IFERROR(IF(Ej_Betalat_Lån*Angivna_Värden,Ingående_Saldo,""), "") ->  | E90: =IFERROR(IF(Ej_Betalat_Lån*Angivna_Värden,Månadsbetalning,""), "") ->  | F90: =IFERROR(IF(Ej_Betalat_Lån*Angivna_Värden,Amortering,""), "") ->  | G90: =IFERROR(IF(Ej_Betalat_Lån*Angivna_Värden,Ränta,""), "") ->  | H90: =IFERROR(IF(Ej_Betalat_Lån*Angivna_Värden,Utgående_Saldo,""), "") -> 
B91: =IFERROR(IF(Ej_Betalat_Lån*Angivna_Värden,Betalningsnummer,""), "") ->  | C91: =IFERROR(IF(Ej_Betalat_Lån*Angivna_Värden,Betalningsdatum,""), "") ->  | D91: =IFERROR(IF(Ej_Betalat_Lån*Angivna_Värden,Ingående_Saldo,""), "") ->  | E91: =IFERROR(IF(Ej_Betalat_Lån*Angivna_Värden,Månadsbetalning,""), "") ->  | F91: =IFERROR(IF(Ej_Betalat_Lån*Angivna_Värden,Amortering,""), "") ->  | G91: =IFERROR(IF(Ej_Betalat_Lån*Angivna_Värden,Ränta,""), "") ->  | H91: =IFERROR(IF(Ej_Betalat_Lån*Angivna_Värden,Utgående_Saldo,""), "") -> 
B92: =IFERROR(IF(Ej_Betalat_Lån*Angivna_Värden,Betalningsnummer,""), "") ->  | C92: =IFERROR(IF(Ej_Betalat_Lån*Angivna_Värden,Betalningsdatum,""), "") ->  | D92: =IFERROR(IF(Ej_Betalat_Lån*Angivna_Värden,Ingående_Saldo,""), "") ->  | E92: =IFERROR(IF(Ej_Betalat_Lån*Angivna_Värden,Månadsbetalning,""), "") ->  | F92: =IFERROR(IF(Ej_Betalat_Lån*Angivna_Värden,Amortering,""), "") ->  | G92: =IFERROR(IF(Ej_Betalat_Lån*Angivna_Värden,Ränta,""), "") ->  | H92: =IFERROR(IF(Ej_Betalat_Lån*Angivna_Värden,Utgående_Saldo,""), "") -> 
B93: =IFERROR(IF(Ej_Betalat_Lån*Angivna_Värden,Betalningsnummer,""), "") ->  | C93: =IFERROR(IF(Ej_Betalat_Lån*Angivna_Värden,Betalningsdatum,""), "") ->  | D93: =IFERROR(IF(Ej_Betalat_Lån*Angivna_Värden,Ingående_Saldo,""), "") ->  | E93: =IFERROR(IF(Ej_Betalat_Lån*Angivna_Värden,Månadsbetalning,""), "") ->  | F93: =IFERROR(IF(Ej_Betalat_Lån*Angivna_Värden,Amortering,""), "") ->  | G93: =IFERROR(IF(Ej_Betalat_Lån*Angivna_Värden,Ränta,""), "") ->  | H93: =IFERROR(IF(Ej_Betalat_Lån*Angivna_Värden,Utgående_Saldo,""), "") -> 
B94: =IFERROR(IF(Ej_Betalat_Lån*Angivna_Värden,Betalningsnummer,""), "") ->  | C94: =IFERROR(IF(Ej_Betalat_Lån*Angivna_Värden,Betalningsdatum,""), "") ->  | D94: =IFERROR(IF(Ej_Betalat_Lån*Angivna_Värden,Ingående_Saldo,""), "") ->  | E94: =IFERROR(IF(Ej_Betalat_Lån*Angivna_Värden,Månadsbetalning,""), "") ->  | F94: =IFERROR(IF(Ej_Betalat_Lån*Angivna_Värden,Amortering,""), "") ->  | G94: =IFERROR(IF(Ej_Betalat_Lån*Angivna_Värden,Ränta,""), "") ->  | H94: =IFERROR(IF(Ej_Betalat_Lån*Angivna_Värden,Utgående_Saldo,""), "") -> 
B95: =IFERROR(IF(Ej_Betalat_Lån*Angivna_Värden,Betalningsnummer,""), "") ->  | C95: =IFERROR(IF(Ej_Betalat_Lån*Angivna_Värden,Betalningsdatum,""), "") ->  | D95: =IFERROR(IF(Ej_Betalat_Lån*Angivna_Värden,Ingående_Saldo,""), "") ->  | E95: =IFERROR(IF(Ej_Betalat_Lån*Angivna_Värden,Månadsbetalning,""), "") ->  | F95: =IFERROR(IF(Ej_Betalat_Lån*Angivna_Värden,Amortering,""), "") ->  | G95: =IFERROR(IF(Ej_Betalat_Lån*Angivna_Värden,Ränta,""), "") ->  | H95: =IFERROR(IF(Ej_Betalat_Lån*Angivna_Värden,Utgående_Saldo,""), "") -> 
B96: =IFERROR(IF(Ej_Betalat_Lån*Angivna_Värden,Betalningsnummer,""), "") ->  | C96: =IFERROR(IF(Ej_Betalat_Lån*Angivna_Värden,Betalningsdatum,""), "") ->  | D96: =IFERROR(IF(Ej_Betalat_Lån*Angivna_Värden,Ingående_Saldo,""), "") ->  | E96: =IFERROR(IF(Ej_Betalat_Lån*Angivna_Värden,Månadsbetalning,""), "") ->  | F96: =IFERROR(IF(Ej_Betalat_Lån*Angivna_Värden,Amortering,""), "") ->  | G96: =IFERROR(IF(Ej_Betalat_Lån*Angivna_Värden,Ränta,""), "") ->  | H96: =IFERROR(IF(Ej_Betalat_Lån*Angivna_Värden,Utgående_Saldo,""), "") -> 
B97: =IFERROR(IF(Ej_Betalat_Lån*Angivna_Värden,Betalningsnummer,""), "") ->  | C97: =IFERROR(IF(Ej_Betalat_Lån*Angivna_Värden,Betalningsdatum,""), "") ->  | D97: =IFERROR(IF(Ej_Betalat_Lån*Angivna_Värden,Ingående_Saldo,""), "") ->  | E97: =IFERROR(IF(Ej_Betalat_Lån*Angivna_Värden,Månadsbetalning,""), "") ->  | F97: =IFERROR(IF(Ej_Betalat_Lån*Angivna_Värden,Amortering,""), "") ->  | G97: =IFERROR(IF(Ej_Betalat_Lån*Angivna_Värden,Ränta,""), "") ->  | H97: =IFERROR(IF(Ej_Betalat_Lån*Angivna_Värden,Utgående_Saldo,""), "") -> 
B98: =IFERROR(IF(Ej_Betalat_Lån*Angivna_Värden,Betalningsnummer,""), "") ->  | C98: =IFERROR(IF(Ej_Betalat_Lån*Angivna_Värden,Betalningsdatum,""), "") ->  | D98: =IFERROR(IF(Ej_Betalat_Lån*Angivna_Värden,Ingående_Saldo,""), "") ->  | E98: =IFERROR(IF(Ej_Betalat_Lån*Angivna_Värden,Månadsbetalning,""), "") ->  | F98: =IFERROR(IF(Ej_Betalat_Lån*Angivna_Värden,Amortering,""), "") ->  | G98: =IFERROR(IF(Ej_Betalat_Lån*Angivna_Värden,Ränta,""), "") ->  | H98: =IFERROR(IF(Ej_Betalat_Lån*Angivna_Värden,Utgående_Saldo,""), "") -> 
B99: =IFERROR(IF(Ej_Betalat_Lån*Angivna_Värden,Betalningsnummer,""), "") ->  | C99: =IFERROR(IF(Ej_Betalat_Lån*Angivna_Värden,Betalningsdatum,""), "") ->  | D99: =IFERROR(IF(Ej_Betalat_Lån*Angivna_Värden,Ingående_Saldo,""), "") ->  | E99: =IFERROR(IF(Ej_Betalat_Lån*Angivna_Värden,Månadsbetalning,""), "") ->  | F99: =IFERROR(IF(Ej_Betalat_Lån*Angivna_Värden,Amortering,""), "") ->  | G99: =IFERROR(IF(Ej_Betalat_Lån*Angivna_Värden,Ränta,""), "") ->  | H99: =IFERROR(IF(Ej_Betalat_Lån*Angivna_Värden,Utgående_Saldo,""), "") -> 
B100: =IFERROR(IF(Ej_Betalat_Lån*Angivna_Värden,Betalningsnummer,""), "") ->  | C100: =IFERROR(IF(Ej_Betalat_Lån*Angivna_Värden,Betalningsdatum,""), "") ->  | D100: =IFERROR(IF(Ej_Betalat_Lån*Angivna_Värden,Ingående_Saldo,""), "") ->  | E100: =IFERROR(IF(Ej_Betalat_Lån*Angivna_Värden,Månadsbetalning,""), "") ->  | F100: =IFERROR(IF(Ej_Betalat_Lån*Angivna_Värden,Amortering,""), "") ->  | G100: =IFERROR(IF(Ej_Betalat_Lån*Angivna_Värden,Ränta,""), "") ->  | H100: =IFERROR(IF(Ej_Betalat_Lån*Angivna_Värden,Utgående_Saldo,""), "") -> 
B101: =IFERROR(IF(Ej_Betalat_Lån*Angivna_Värden,Betalningsnummer,""), "") ->  | C101: =IFERROR(IF(Ej_Betalat_Lån*Angivna_Värden,Betalningsdatum,""), "") ->  | D101: =IFERROR(IF(Ej_Betalat_Lån*Angivna_Värden,Ingående_Saldo,""), "") ->  | E101: =IFERROR(IF(Ej_Betalat_Lån*Angivna_Värden,Månadsbetalning,""), "") ->  | F101: =IFERROR(IF(Ej_Betalat_Lån*Angivna_Värden,Amortering,""), "") ->  | G101: =IFERROR(IF(Ej_Betalat_Lån*Angivna_Värden,Ränta,""), "") ->  | H101: =IFERROR(IF(Ej_Betalat_Lån*Angivna_Värden,Utgående_Saldo,""), "") -> 
B102: =IFERROR(IF(Ej_Betalat_Lån*Angivna_Värden,Betalningsnummer,""), "") ->  | C102: =IFERROR(IF(Ej_Betalat_Lån*Angivna_Värden,Betalningsdatum,""), "") ->  | D102: =IFERROR(IF(Ej_Betalat_Lån*Angivna_Värden,Ingående_Saldo,""), "") ->  | E102: =IFERROR(IF(Ej_Betalat_Lån*Angivna_Värden,Månadsbetalning,""), "") ->  | F102: =IFERROR(IF(Ej_Betalat_Lån*Angivna_Värden,Amortering,""), "") ->  | G102: =IFERROR(IF(Ej_Betalat_Lån*Angivna_Värden,Ränta,""), "") ->  | H102: =IFERROR(IF(Ej_Betalat_Lån*Angivna_Värden,Utgående_Saldo,""), "") -> 
B103: =IFERROR(IF(Ej_Betalat_Lån*Angivna_Värden,Betalningsnummer,""), "") ->  | C103: =IFERROR(IF(Ej_Betalat_Lån*Angivna_Värden,Betalningsdatum,""), "") ->  | D103: =IFERROR(IF(Ej_Betalat_Lån*Angivna_Värden,Ingående_Saldo,""), "") ->  | E103: =IFERROR(IF(Ej_Betalat_Lån*Angivna_Värden,Månadsbetalning,""), "") ->  | F103: =IFERROR(IF(Ej_Betalat_Lån*Angivna_Värden,Amortering,""), "") ->  | G103: =IFERROR(IF(Ej_Betalat_Lån*Angivna_Värden,Ränta,""), "") ->  | H103: =IFERROR(IF(Ej_Betalat_Lån*Angivna_Värden,Utgående_Saldo,""), "") -> 
B104: =IFERROR(IF(Ej_Betalat_Lån*Angivna_Värden,Betalningsnummer,""), "") ->  | C104: =IFERROR(IF(Ej_Betalat_Lån*Angivna_Värden,Betalningsdatum,""), "") ->  | D104: =IFERROR(IF(Ej_Betalat_Lån*Angivna_Värden,Ingående_Saldo,""), "") ->  | E104: =IFERROR(IF(Ej_Betalat_Lån*Angivna_Värden,Månadsbetalning,""), "") ->  | F104: =IFERROR(IF(Ej_Betalat_Lån*Angivna_Värden,Amortering,""), "") ->  | G104: =IFERROR(IF(Ej_Betalat_Lån*Angivna_Värden,Ränta,""), "") ->  | H104: =IFERROR(IF(Ej_Betalat_Lån*Angivna_Värden,Utgående_Saldo,""), "") -> 
B105: =IFERROR(IF(Ej_Betalat_Lån*Angivna_Värden,Betalningsnummer,""), "") ->  | C105: =IFERROR(IF(Ej_Betalat_Lån*Angivna_Värden,Betalningsdatum,""), "") ->  | D105: =IFERROR(IF(Ej_Betalat_Lån*Angivna_Värden,Ingående_Saldo,""), "") ->  | E105: =IFERROR(IF(Ej_Betalat_Lån*Angivna_Värden,Månadsbetalning,""), "") ->  | F105: =IFERROR(IF(Ej_Betalat_Lån*Angivna_Värden,Amortering,""), "") ->  | G105: =IFERROR(IF(Ej_Betalat_Lån*Angivna_Värden,Ränta,""), "") ->  | H105: =IFERROR(IF(Ej_Betalat_Lån*Angivna_Värden,Utgående_Saldo,""), "") -> 
B106: =IFERROR(IF(Ej_Betalat_Lån*Angivna_Värden,Betalningsnummer,""), "") ->  | C106: =IFERROR(IF(Ej_Betalat_Lån*Angivna_Värden,Betalningsdatum,""), "") ->  | D106: =IFERROR(IF(Ej_Betalat_Lån*Angivna_Värden,Ingående_Saldo,""), "") ->  | E106: =IFERROR(IF(Ej_Betalat_Lån*Angivna_Värden,Månadsbetalning,""), "") ->  | F106: =IFERROR(IF(Ej_Betalat_Lån*Angivna_Värden,Amortering,""), "") ->  | G106: =IFERROR(IF(Ej_Betalat_Lån*Angivna_Värden,Ränta,""), "") ->  | H106: =IFERROR(IF(Ej_Betalat_Lån*Angivna_Värden,Utgående_Saldo,""), "") -> 
B107: =IFERROR(IF(Ej_Betalat_Lån*Angivna_Värden,Betalningsnummer,""), "") ->  | C107: =IFERROR(IF(Ej_Betalat_Lån*Angivna_Värden,Betalningsdatum,""), "") ->  | D107: =IFERROR(IF(Ej_Betalat_Lån*Angivna_Värden,Ingående_Saldo,""), "") ->  | E107: =IFERROR(IF(Ej_Betalat_Lån*Angivna_Värden,Månadsbetalning,""), "") ->  | F107: =IFERROR(IF(Ej_Betalat_Lån*Angivna_Värden,Amortering,""), "") ->  | G107: =IFERROR(IF(Ej_Betalat_Lån*Angivna_Värden,Ränta,""), "") ->  | H107: =IFERROR(IF(Ej_Betalat_Lån*Angivna_Värden,Utgående_Saldo,""), "") -> 
B108: =IFERROR(IF(Ej_Betalat_Lån*Angivna_Värden,Betalningsnummer,""), "") ->  | C108: =IFERROR(IF(Ej_Betalat_Lån*Angivna_Värden,Betalningsdatum,""), "") ->  | D108: =IFERROR(IF(Ej_Betalat_Lån*Angivna_Värden,Ingående_Saldo,""), "") ->  | E108: =IFERROR(IF(Ej_Betalat_Lån*Angivna_Värden,Månadsbetalning,""), "") ->  | F108: =IFERROR(IF(Ej_Betalat_Lån*Angivna_Värden,Amortering,""), "") ->  | G108: =IFERROR(IF(Ej_Betalat_Lån*Angivna_Värden,Ränta,""), "") ->  | H108: =IFERROR(IF(Ej_Betalat_Lån*Angivna_Värden,Utgående_Saldo,""), "") -> 
B109: =IFERROR(IF(Ej_Betalat_Lån*Angivna_Värden,Betalningsnummer,""), "") ->  | C109: =IFERROR(IF(Ej_Betalat_Lån*Angivna_Värden,Betalningsdatum,""), "") ->  | D109: =IFERROR(IF(Ej_Betalat_Lån*Angivna_Värden,Ingående_Saldo,""), "") ->  | E109: =IFERROR(IF(Ej_Betalat_Lån*Angivna_Värden,Månadsbetalning,""), "") ->  | F109: =IFERROR(IF(Ej_Betalat_Lån*Angivna_Värden,Amortering,""), "") ->  | G109: =IFERROR(IF(Ej_Betalat_Lån*Angivna_Värden,Ränta,""), "") ->  | H109: =IFERROR(IF(Ej_Betalat_Lån*Angivna_Värden,Utgående_Saldo,""), "") -> 
B110: =IFERROR(IF(Ej_Betalat_Lån*Angivna_Värden,Betalningsnummer,""), "") ->  | C110: =IFERROR(IF(Ej_Betalat_Lån*Angivna_Värden,Betalningsdatum,""), "") ->  | D110: =IFERROR(IF(Ej_Betalat_Lån*Angivna_Värden,Ingående_Saldo,""), "") ->  | E110: =IFERROR(IF(Ej_Betalat_Lån*Angivna_Värden,Månadsbetalning,""), "") ->  | F110: =IFERROR(IF(Ej_Betalat_Lån*Angivna_Värden,Amortering,""), "") ->  | G110: =IFERROR(IF(Ej_Betalat_Lån*Angivna_Värden,Ränta,""), "") ->  | H110: =IFERROR(IF(Ej_Betalat_Lån*Angivna_Värden,Utgående_Saldo,""), "") -> 
B111: =IFERROR(IF(Ej_Betalat_Lån*Angivna_Värden,Betalningsnummer,""), "") ->  | C111: =IFERROR(IF(Ej_Betalat_Lån*Angivna_Värden,Betalningsdatum,""), "") ->  | D111: =IFERROR(IF(Ej_Betalat_Lån*Angivna_Värden,Ingående_Saldo,""), "") ->  | E111: =IFERROR(IF(Ej_Betalat_Lån*Angivna_Värden,Månadsbetalning,""), "") ->  | F111: =IFERROR(IF(Ej_Betalat_Lån*Angivna_Värden,Amortering,""), "") ->  | G111: =IFERROR(IF(Ej_Betalat_Lån*Angivna_Värden,Ränta,""), "") ->  | H111: =IFERROR(IF(Ej_Betalat_Lån*Angivna_Värden,Utgående_Saldo,""), "") -> 
B112: =IFERROR(IF(Ej_Betalat_Lån*Angivna_Värden,Betalningsnummer,""), "") ->  | C112: =IFERROR(IF(Ej_Betalat_Lån*Angivna_Värden,Betalningsdatum,""), "") ->  | D112: =IFERROR(IF(Ej_Betalat_Lån*Angivna_Värden,Ingående_Saldo,""), "") ->  | E112: =IFERROR(IF(Ej_Betalat_Lån*Angivna_Värden,Månadsbetalning,""), "") ->  | F112: =IFERROR(IF(Ej_Betalat_Lån*Angivna_Värden,Amortering,""), "") ->  | G112: =IFERROR(IF(Ej_Betalat_Lån*Angivna_Värden,Ränta,""), "") ->  | H112: =IFERROR(IF(Ej_Betalat_Lån*Angivna_Värden,Utgående_Saldo,""), "") -> 
B113: =IFERROR(IF(Ej_Betalat_Lån*Angivna_Värden,Betalningsnummer,""), "") ->  | C113: =IFERROR(IF(Ej_Betalat_Lån*Angivna_Värden,Betalningsdatum,""), "") ->  | D113: =IFERROR(IF(Ej_Betalat_Lån*Angivna_Värden,Ingående_Saldo,""), "") ->  | E113: =IFERROR(IF(Ej_Betalat_Lån*Angivna_Värden,Månadsbetalning,""), "") ->  | F113: =IFERROR(IF(Ej_Betalat_Lån*Angivna_Värden,Amortering,""), "") ->  | G113: =IFERROR(IF(Ej_Betalat_Lån*Angivna_Värden,Ränta,""), "") ->  | H113: =IFERROR(IF(Ej_Betalat_Lån*Angivna_Värden,Utgående_Saldo,""), "") -> 
B114: =IFERROR(IF(Ej_Betalat_Lån*Angivna_Värden,Betalningsnummer,""), "") ->  | C114: =IFERROR(IF(Ej_Betalat_Lån*Angivna_Värden,Betalningsdatum,""), "") ->  | D114: =IFERROR(IF(Ej_Betalat_Lån*Angivna_Värden,Ingående_Saldo,""), "") ->  | E114: =IFERROR(IF(Ej_Betalat_Lån*Angivna_Värden,Månadsbetalning,""), "") ->  | F114: =IFERROR(IF(Ej_Betalat_Lån*Angivna_Värden,Amortering,""), "") ->  | G114: =IFERROR(IF(Ej_Betalat_Lån*Angivna_Värden,Ränta,""), "") ->  | H114: =IFERROR(IF(Ej_Betalat_Lån*Angivna_Värden,Utgående_Saldo,""), "") -> 
B115: =IFERROR(IF(Ej_Betalat_Lån*Angivna_Värden,Betalningsnummer,""), "") ->  | C115: =IFERROR(IF(Ej_Betalat_Lån*Angivna_Värden,Betalningsdatum,""), "") ->  | D115: =IFERROR(IF(Ej_Betalat_Lån*Angivna_Värden,Ingående_Saldo,""), "") ->  | E115: =IFERROR(IF(Ej_Betalat_Lån*Angivna_Värden,Månadsbetalning,""), "") ->  | F115: =IFERROR(IF(Ej_Betalat_Lån*Angivna_Värden,Amortering,""), "") ->  | G115: =IFERROR(IF(Ej_Betalat_Lån*Angivna_Värden,Ränta,""), "") ->  | H115: =IFERROR(IF(Ej_Betalat_Lån*Angivna_Värden,Utgående_Saldo,""), "") -> 
B116: =IFERROR(IF(Ej_Betalat_Lån*Angivna_Värden,Betalningsnummer,""), "") ->  | C116: =IFERROR(IF(Ej_Betalat_Lån*Angivna_Värden,Betalningsdatum,""), "") ->  | D116: =IFERROR(IF(Ej_Betalat_Lån*Angivna_Värden,Ingående_Saldo,""), "") ->  | E116: =IFERROR(IF(Ej_Betalat_Lån*Angivna_Värden,Månadsbetalning,""), "") ->  | F116: =IFERROR(IF(Ej_Betalat_Lån*Angivna_Värden,Amortering,""), "") ->  | G116: =IFERROR(IF(Ej_Betalat_Lån*Angivna_Värden,Ränta,""), "") ->  | H116: =IFERROR(IF(Ej_Betalat_Lån*Angivna_Värden,Utgående_Saldo,""), "") -> 
B117: =IFERROR(IF(Ej_Betalat_Lån*Angivna_Värden,Betalningsnummer,""), "") ->  | C117: =IFERROR(IF(Ej_Betalat_Lån*Angivna_Värden,Betalningsdatum,""), "") ->  | D117: =IFERROR(IF(Ej_Betalat_Lån*Angivna_Värden,Ingående_Saldo,""), "") ->  | E117: =IFERROR(IF(Ej_Betalat_Lån*Angivna_Värden,Månadsbetalning,""), "") ->  | F117: =IFERROR(IF(Ej_Betalat_Lån*Angivna_Värden,Amortering,""), "") ->  | G117: =IFERROR(IF(Ej_Betalat_Lån*Angivna_Värden,Ränta,""), "") ->  | H117: =IFERROR(IF(Ej_Betalat_Lån*Angivna_Värden,Utgående_Saldo,""), "") -> 
B118: =IFERROR(IF(Ej_Betalat_Lån*Angivna_Värden,Betalningsnummer,""), "") ->  | C118: =IFERROR(IF(Ej_Betalat_Lån*Angivna_Värden,Betalningsdatum,""), "") ->  | D118: =IFERROR(IF(Ej_Betalat_Lån*Angivna_Värden,Ingående_Saldo,""), "") ->  | E118: =IFERROR(IF(Ej_Betalat_Lån*Angivna_Värden,Månadsbetalning,""), "") ->  | F118: =IFERROR(IF(Ej_Betalat_Lån*Angivna_Värden,Amortering,""), "") ->  | G118: =IFERROR(IF(Ej_Betalat_Lån*Angivna_Värden,Ränta,""), "") ->  | H118: =IFERROR(IF(Ej_Betalat_Lån*Angivna_Värden,Utgående_Saldo,""), "") -> 
B119: =IFERROR(IF(Ej_Betalat_Lån*Angivna_Värden,Betalningsnummer,""), "") ->  | C119: =IFERROR(IF(Ej_Betalat_Lån*Angivna_Värden,Betalningsdatum,""), "") ->  | D119: =IFERROR(IF(Ej_Betalat_Lån*Angivna_Värden,Ingående_Saldo,""), "") ->  | E119: =IFERROR(IF(Ej_Betalat_Lån*Angivna_Värden,Månadsbetalning,""), "") ->  | F119: =IFERROR(IF(Ej_Betalat_Lån*Angivna_Värden,Amortering,""), "") ->  | G119: =IFERROR(IF(Ej_Betalat_Lån*Angivna_Värden,Ränta,""), "") ->  | H119: =IFERROR(IF(Ej_Betalat_Lån*Angivna_Värden,Utgående_Saldo,""), "") -> 
B120: =IFERROR(IF(Ej_Betalat_Lån*Angivna_Värden,Betalningsnummer,""), "") ->  | C120: =IFERROR(IF(Ej_Betalat_Lån*Angivna_Värden,Betalningsdatum,""), "") ->  | D120: =IFERROR(IF(Ej_Betalat_Lån*Angivna_Värden,Ingående_Saldo,""), "") ->  | E120: =IFERROR(IF(Ej_Betalat_Lån*Angivna_Värden,Månadsbetalning,""), "") ->  | F120: =IFERROR(IF(Ej_Betalat_Lån*Angivna_Värden,Amortering,""), "") ->  | G120: =IFERROR(IF(Ej_Betalat_Lån*Angivna_Värden,Ränta,""), "") ->  | H120: =IFERROR(IF(Ej_Betalat_Lån*Angivna_Värden,Utgående_Saldo,""), "") -> 
B121: =IFERROR(IF(Ej_Betalat_Lån*Angivna_Värden,Betalningsnummer,""), "") ->  | C121: =IFERROR(IF(Ej_Betalat_Lån*Angivna_Värden,Betalningsdatum,""), "") ->  | D121: =IFERROR(IF(Ej_Betalat_Lån*Angivna_Värden,Ingående_Saldo,""), "") ->  | E121: =IFERROR(IF(Ej_Betalat_Lån*Angivna_Värden,Månadsbetalning,""), "") ->  | F121: =IFERROR(IF(Ej_Betalat_Lån*Angivna_Värden,Amortering,""), "") ->  | G121: =IFERROR(IF(Ej_Betalat_Lån*Angivna_Värden,Ränta,""), "") ->  | H121: =IFERROR(IF(Ej_Betalat_Lån*Angivna_Värden,Utgående_Saldo,""), "") -> 
B122: =IFERROR(IF(Ej_Betalat_Lån*Angivna_Värden,Betalningsnummer,""), "") ->  | C122: =IFERROR(IF(Ej_Betalat_Lån*Angivna_Värden,Betalningsdatum,""), "") ->  | D122: =IFERROR(IF(Ej_Betalat_Lån*Angivna_Värden,Ingående_Saldo,""), "") ->  | E122: =IFERROR(IF(Ej_Betalat_Lån*Angivna_Värden,Månadsbetalning,""), "") ->  | F122: =IFERROR(IF(Ej_Betalat_Lån*Angivna_Värden,Amortering,""), "") ->  | G122: =IFERROR(IF(Ej_Betalat_Lån*Angivna_Värden,Ränta,""), "") ->  | H122: =IFERROR(IF(Ej_Betalat_Lån*Angivna_Värden,Utgående_Saldo,""), "") -> 
B123: =IFERROR(IF(Ej_Betalat_Lån*Angivna_Värden,Betalningsnummer,""), "") ->  | C123: =IFERROR(IF(Ej_Betalat_Lån*Angivna_Värden,Betalningsdatum,""), "") ->  | D123: =IFERROR(IF(Ej_Betalat_Lån*Angivna_Värden,Ingående_Saldo,""), "") ->  | E123: =IFERROR(IF(Ej_Betalat_Lån*Angivna_Värden,Månadsbetalning,""), "") ->  | F123: =IFERROR(IF(Ej_Betalat_Lån*Angivna_Värden,Amortering,""), "") ->  | G123: =IFERROR(IF(Ej_Betalat_Lån*Angivna_Värden,Ränta,""), "") ->  | H123: =IFERROR(IF(Ej_Betalat_Lån*Angivna_Värden,Utgående_Saldo,""), "") -> 
B124: =IFERROR(IF(Ej_Betalat_Lån*Angivna_Värden,Betalningsnummer,""), "") ->  | C124: =IFERROR(IF(Ej_Betalat_Lån*Angivna_Värden,Betalningsdatum,""), "") ->  | D124: =IFERROR(IF(Ej_Betalat_Lån*Angivna_Värden,Ingående_Saldo,""), "") ->  | E124: =IFERROR(IF(Ej_Betalat_Lån*Angivna_Värden,Månadsbetalning,""), "") ->  | F124: =IFERROR(IF(Ej_Betalat_Lån*Angivna_Värden,Amortering,""), "") ->  | G124: =IFERROR(IF(Ej_Betalat_Lån*Angivna_Värden,Ränta,""), "") ->  | H124: =IFERROR(IF(Ej_Betalat_Lån*Angivna_Värden,Utgående_Saldo,""), "") -> 
B125: =IFERROR(IF(Ej_Betalat_Lån*Angivna_Värden,Betalningsnummer,""), "") ->  | C125: =IFERROR(IF(Ej_Betalat_Lån*Angivna_Värden,Betalningsdatum,""), "") ->  | D125: =IFERROR(IF(Ej_Betalat_Lån*Angivna_Värden,Ingående_Saldo,""), "") ->  | E125: =IFERROR(IF(Ej_Betalat_Lån*Angivna_Värden,Månadsbetalning,""), "") ->  | F125: =IFERROR(IF(Ej_Betalat_Lån*Angivna_Värden,Amortering,""), "") ->  | G125: =IFERROR(IF(Ej_Betalat_Lån*Angivna_Värden,Ränta,""), "") ->  | H125: =IFERROR(IF(Ej_Betalat_Lån*Angivna_Värden,Utgående_Saldo,""), "") -> 
B126: =IFERROR(IF(Ej_Betalat_Lån*Angivna_Värden,Betalningsnummer,""), "") ->  | C126: =IFERROR(IF(Ej_Betalat_Lån*Angivna_Värden,Betalningsdatum,""), "") ->  | D126: =IFERROR(IF(Ej_Betalat_Lån*Angivna_Värden,Ingående_Saldo,""), "") ->  | E126: =IFERROR(IF(Ej_Betalat_Lån*Angivna_Värden,Månadsbetalning,""), "") ->  | F126: =IFERROR(IF(Ej_Betalat_Lån*Angivna_Värden,Amortering,""), "") ->  | G126: =IFERROR(IF(Ej_Betalat_Lån*Angivna_Värden,Ränta,""), "") ->  | H126: =IFERROR(IF(Ej_Betalat_Lån*Angivna_Värden,Utgående_Saldo,""), "") -> 
B127: =IFERROR(IF(Ej_Betalat_Lån*Angivna_Värden,Betalningsnummer,""), "") ->  | C127: =IFERROR(IF(Ej_Betalat_Lån*Angivna_Värden,Betalningsdatum,""), "") ->  | D127: =IFERROR(IF(Ej_Betalat_Lån*Angivna_Värden,Ingående_Saldo,""), "") ->  | E127: =IFERROR(IF(Ej_Betalat_Lån*Angivna_Värden,Månadsbetalning,""), "") ->  | F127: =IFERROR(IF(Ej_Betalat_Lån*Angivna_Värden,Amortering,""), "") ->  | G127: =IFERROR(IF(Ej_Betalat_Lån*Angivna_Värden,Ränta,""), "") ->  | H127: =IFERROR(IF(Ej_Betalat_Lån*Angivna_Värden,Utgående_Saldo,""), "") -> 
B128: =IFERROR(IF(Ej_Betalat_Lån*Angivna_Värden,Betalningsnummer,""), "") ->  | C128: =IFERROR(IF(Ej_Betalat_Lån*Angivna_Värden,Betalningsdatum,""), "") ->  | D128: =IFERROR(IF(Ej_Betalat_Lån*Angivna_Värden,Ingående_Saldo,""), "") ->  | E128: =IFERROR(IF(Ej_Betalat_Lån*Angivna_Värden,Månadsbetalning,""), "") ->  | F128: =IFERROR(IF(Ej_Betalat_Lån*Angivna_Värden,Amortering,""), "") ->  | G128: =IFERROR(IF(Ej_Betalat_Lån*Angivna_Värden,Ränta,""), "") ->  | H128: =IFERROR(IF(Ej_Betalat_Lån*Angivna_Värden,Utgående_Saldo,""), "") -> 
B129: =IFERROR(IF(Ej_Betalat_Lån*Angivna_Värden,Betalningsnummer,""), "") ->  | C129: =IFERROR(IF(Ej_Betalat_Lån*Angivna_Värden,Betalningsdatum,""), "") ->  | D129: =IFERROR(IF(Ej_Betalat_Lån*Angivna_Värden,Ingående_Saldo,""), "") ->  | E129: =IFERROR(IF(Ej_Betalat_Lån*Angivna_Värden,Månadsbetalning,""), "") ->  | F129: =IFERROR(IF(Ej_Betalat_Lån*Angivna_Värden,Amortering,""), "") ->  | G129: =IFERROR(IF(Ej_Betalat_Lån*Angivna_Värden,Ränta,""), "") ->  | H129: =IFERROR(IF(Ej_Betalat_Lån*Angivna_Värden,Utgående_Saldo,""), "") -> 
B130: =IFERROR(IF(Ej_Betalat_Lån*Angivna_Värden,Betalningsnummer,""), "") ->  | C130: =IFERROR(IF(Ej_Betalat_Lån*Angivna_Värden,Betalningsdatum,""), "") ->  | D130: =IFERROR(IF(Ej_Betalat_Lån*Angivna_Värden,Ingående_Saldo,""), "") ->  | E130: =IFERROR(IF(Ej_Betalat_Lån*Angivna_Värden,Månadsbetalning,""), "") ->  | F130: =IFERROR(IF(Ej_Betalat_Lån*Angivna_Värden,Amortering,""), "") ->  | G130: =IFERROR(IF(Ej_Betalat_Lån*Angivna_Värden,Ränta,""), "") ->  | H130: =IFERROR(IF(Ej_Betalat_Lån*Angivna_Värden,Utgående_Saldo,""), "") -> 
B131: =IFERROR(IF(Ej_Betalat_Lån*Angivna_Värden,Betalningsnummer,""), "") ->  | C131: =IFERROR(IF(Ej_Betalat_Lån*Angivna_Värden,Betalningsdatum,""), "") ->  | D131: =IFERROR(IF(Ej_Betalat_Lån*Angivna_Värden,Ingående_Saldo,""), "") ->  | E131: =IFERROR(IF(Ej_Betalat_Lån*Angivna_Värden,Månadsbetalning,""), "") ->  | F131: =IFERROR(IF(Ej_Betalat_Lån*Angivna_Värden,Amortering,""), "") ->  | G131: =IFERROR(IF(Ej_Betalat_Lån*Angivna_Värden,Ränta,""), "") ->  | H131: =IFERROR(IF(Ej_Betalat_Lån*Angivna_Värden,Utgående_Saldo,""), "") -> 
B132: =IFERROR(IF(Ej_Betalat_Lån*Angivna_Värden,Betalningsnummer,""), "") ->  | C132: =IFERROR(IF(Ej_Betalat_Lån*Angivna_Värden,Betalningsdatum,""), "") ->  | D132: =IFERROR(IF(Ej_Betalat_Lån*Angivna_Värden,Ingående_Saldo,""), "") ->  | E132: =IFERROR(IF(Ej_Betalat_Lån*Angivna_Värden,Månadsbetalning,""), "") ->  | F132: =IFERROR(IF(Ej_Betalat_Lån*Angivna_Värden,Amortering,""), "") ->  | G132: =IFERROR(IF(Ej_Betalat_Lån*Angivna_Värden,Ränta,""), "") ->  | H132: =IFERROR(IF(Ej_Betalat_Lån*Angivna_Värden,Utgående_Saldo,""), "") -> 
B133: =IFERROR(IF(Ej_Betalat_Lån*Angivna_Värden,Betalningsnummer,""), "") ->  | C133: =IFERROR(IF(Ej_Betalat_Lån*Angivna_Värden,Betalningsdatum,""), "") ->  | D133: =IFERROR(IF(Ej_Betalat_Lån*Angivna_Värden,Ingående_Saldo,""), "") ->  | E133: =IFERROR(IF(Ej_Betalat_Lån*Angivna_Värden,Månadsbetalning,""), "") ->  | F133: =IFERROR(IF(Ej_Betalat_Lån*Angivna_Värden,Amortering,""), "") ->  | G133: =IFERROR(IF(Ej_Betalat_Lån*Angivna_Värden,Ränta,""), "") ->  | H133: =IFERROR(IF(Ej_Betalat_Lån*Angivna_Värden,Utgående_Saldo,""), "") -> 
B134: =IFERROR(IF(Ej_Betalat_Lån*Angivna_Värden,Betalningsnummer,""), "") ->  | C134: =IFERROR(IF(Ej_Betalat_Lån*Angivna_Värden,Betalningsdatum,""), "") ->  | D134: =IFERROR(IF(Ej_Betalat_Lån*Angivna_Värden,Ingående_Saldo,""), "") ->  | E134: =IFERROR(IF(Ej_Betalat_Lån*Angivna_Värden,Månadsbetalning,""), "") ->  | F134: =IFERROR(IF(Ej_Betalat_Lån*Angivna_Värden,Amortering,""), "") ->  | G134: =IFERROR(IF(Ej_Betalat_Lån*Angivna_Värden,Ränta,""), "") ->  | H134: =IFERROR(IF(Ej_Betalat_Lån*Angivna_Värden,Utgående_Saldo,""), "") -> 
B135: =IFERROR(IF(Ej_Betalat_Lån*Angivna_Värden,Betalningsnummer,""), "") ->  | C135: =IFERROR(IF(Ej_Betalat_Lån*Angivna_Värden,Betalningsdatum,""), "") ->  | D135: =IFERROR(IF(Ej_Betalat_Lån*Angivna_Värden,Ingående_Saldo,""), "") ->  | E135: =IFERROR(IF(Ej_Betalat_Lån*Angivna_Värden,Månadsbetalning,""), "") ->  | F135: =IFERROR(IF(Ej_Betalat_Lån*Angivna_Värden,Amortering,""), "") ->  | G135: =IFERROR(IF(Ej_Betalat_Lån*Angivna_Värden,Ränta,""), "") ->  | H135: =IFERROR(IF(Ej_Betalat_Lån*Angivna_Värden,Utgående_Saldo,""), "") -> 
B136: =IFERROR(IF(Ej_Betalat_Lån*Angivna_Värden,Betalningsnummer,""), "") ->  | C136: =IFERROR(IF(Ej_Betalat_Lån*Angivna_Värden,Betalningsdatum,""), "") ->  | D136: =IFERROR(IF(Ej_Betalat_Lån*Angivna_Värden,Ingående_Saldo,""), "") ->  | E136: =IFERROR(IF(Ej_Betalat_Lån*Angivna_Värden,Månadsbetalning,""), "") ->  | F136: =IFERROR(IF(Ej_Betalat_Lån*Angivna_Värden,Amortering,""), "") ->  | G136: =IFERROR(IF(Ej_Betalat_Lån*Angivna_Värden,Ränta,""), "") ->  | H136: =IFERROR(IF(Ej_Betalat_Lån*Angivna_Värden,Utgående_Saldo,""), "") -> 
B137: =IFERROR(IF(Ej_Betalat_Lån*Angivna_Värden,Betalningsnummer,""), "") ->  | C137: =IFERROR(IF(Ej_Betalat_Lån*Angivna_Värden,Betalningsdatum,""), "") ->  | D137: =IFERROR(IF(Ej_Betalat_Lån*Angivna_Värden,Ingående_Saldo,""), "") ->  | E137: =IFERROR(IF(Ej_Betalat_Lån*Angivna_Värden,Månadsbetalning,""), "") ->  | F137: =IFERROR(IF(Ej_Betalat_Lån*Angivna_Värden,Amortering,""), "") ->  | G137: =IFERROR(IF(Ej_Betalat_Lån*Angivna_Värden,Ränta,""), "") ->  | H137: =IFERROR(IF(Ej_Betalat_Lån*Angivna_Värden,Utgående_Saldo,""), "") -> 
B138: =IFERROR(IF(Ej_Betalat_Lån*Angivna_Värden,Betalningsnummer,""), "") ->  | C138: =IFERROR(IF(Ej_Betalat_Lån*Angivna_Värden,Betalningsdatum,""), "") ->  | D138: =IFERROR(IF(Ej_Betalat_Lån*Angivna_Värden,Ingående_Saldo,""), "") ->  | E138: =IFERROR(IF(Ej_Betalat_Lån*Angivna_Värden,Månadsbetalning,""), "") ->  | F138: =IFERROR(IF(Ej_Betalat_Lån*Angivna_Värden,Amortering,""), "") ->  | G138: =IFERROR(IF(Ej_Betalat_Lån*Angivna_Värden,Ränta,""), "") ->  | H138: =IFERROR(IF(Ej_Betalat_Lån*Angivna_Värden,Utgående_Saldo,""), "") -> 
B139: =IFERROR(IF(Ej_Betalat_Lån*Angivna_Värden,Betalningsnummer,""), "") ->  | C139: =IFERROR(IF(Ej_Betalat_Lån*Angivna_Värden,Betalningsdatum,""), "") ->  | D139: =IFERROR(IF(Ej_Betalat_Lån*Angivna_Värden,Ingående_Saldo,""), "") ->  | E139: =IFERROR(IF(Ej_Betalat_Lån*Angivna_Värden,Månadsbetalning,""), "") ->  | F139: =IFERROR(IF(Ej_Betalat_Lån*Angivna_Värden,Amortering,""), "") ->  | G139: =IFERROR(IF(Ej_Betalat_Lån*Angivna_Värden,Ränta,""), "") ->  | H139: =IFERROR(IF(Ej_Betalat_Lån*Angivna_Värden,Utgående_Saldo,""), "") -> 
B140: =IFERROR(IF(Ej_Betalat_Lån*Angivna_Värden,Betalningsnummer,""), "") ->  | C140: =IFERROR(IF(Ej_Betalat_Lån*Angivna_Värden,Betalningsdatum,""), "") ->  | D140: =IFERROR(IF(Ej_Betalat_Lån*Angivna_Värden,Ingående_Saldo,""), "") ->  | E140: =IFERROR(IF(Ej_Betalat_Lån*Angivna_Värden,Månadsbetalning,""), "") ->  | F140: =IFERROR(IF(Ej_Betalat_Lån*Angivna_Värden,Amortering,""), "") ->  | G140: =IFERROR(IF(Ej_Betalat_Lån*Angivna_Värden,Ränta,""), "") ->  | H140: =IFERROR(IF(Ej_Betalat_Lån*Angivna_Värden,Utgående_Saldo,""), "") -> 
B141: =IFERROR(IF(Ej_Betalat_Lån*Angivna_Värden,Betalningsnummer,""), "") ->  | C141: =IFERROR(IF(Ej_Betalat_Lån*Angivna_Värden,Betalningsdatum,""), "") ->  | D141: =IFERROR(IF(Ej_Betalat_Lån*Angivna_Värden,Ingående_Saldo,""), "") ->  | E141: =IFERROR(IF(Ej_Betalat_Lån*Angivna_Värden,Månadsbetalning,""), "") ->  | F141: =IFERROR(IF(Ej_Betalat_Lån*Angivna_Värden,Amortering,""), "") ->  | G141: =IFERROR(IF(Ej_Betalat_Lån*Angivna_Värden,Ränta,""), "") ->  | H141: =IFERROR(IF(Ej_Betalat_Lån*Angivna_Värden,Utgående_Saldo,""), "") -> 
B142: =IFERROR(IF(Ej_Betalat_Lån*Angivna_Värden,Betalningsnummer,""), "") ->  | C142: =IFERROR(IF(Ej_Betalat_Lån*Angivna_Värden,Betalningsdatum,""), "") ->  | D142: =IFERROR(IF(Ej_Betalat_Lån*Angivna_Värden,Ingående_Saldo,""), "") ->  | E142: =IFERROR(IF(Ej_Betalat_Lån*Angivna_Värden,Månadsbetalning,""), "") ->  | F142: =IFERROR(IF(Ej_Betalat_Lån*Angivna_Värden,Amortering,""), "") ->  | G142: =IFERROR(IF(Ej_Betalat_Lån*Angivna_Värden,Ränta,""), "") ->  | H142: =IFERROR(IF(Ej_Betalat_Lån*Angivna_Värden,Utgående_Saldo,""), "") -> 
B143: =IFERROR(IF(Ej_Betalat_Lån*Angivna_Värden,Betalningsnummer,""), "") ->  | C143: =IFERROR(IF(Ej_Betalat_Lån*Angivna_Värden,Betalningsdatum,""), "") ->  | D143: =IFERROR(IF(Ej_Betalat_Lån*Angivna_Värden,Ingående_Saldo,""), "") ->  | E143: =IFERROR(IF(Ej_Betalat_Lån*Angivna_Värden,Månadsbetalning,""), "") ->  | F143: =IFERROR(IF(Ej_Betalat_Lån*Angivna_Värden,Amortering,""), "") ->  | G143: =IFERROR(IF(Ej_Betalat_Lån*Angivna_Värden,Ränta,""), "") ->  | H143: =IFERROR(IF(Ej_Betalat_Lån*Angivna_Värden,Utgående_Saldo,""), "") -> 
B144: =IFERROR(IF(Ej_Betalat_Lån*Angivna_Värden,Betalningsnummer,""), "") ->  | C144: =IFERROR(IF(Ej_Betalat_Lån*Angivna_Värden,Betalningsdatum,""), "") ->  | D144: =IFERROR(IF(Ej_Betalat_Lån*Angivna_Värden,Ingående_Saldo,""), "") ->  | E144: =IFERROR(IF(Ej_Betalat_Lån*Angivna_Värden,Månadsbetalning,""), "") ->  | F144: =IFERROR(IF(Ej_Betalat_Lån*Angivna_Värden,Amortering,""), "") ->  | G144: =IFERROR(IF(Ej_Betalat_Lån*Angivna_Värden,Ränta,""), "") ->  | H144: =IFERROR(IF(Ej_Betalat_Lån*Angivna_Värden,Utgående_Saldo,""), "") -> 
B145: =IFERROR(IF(Ej_Betalat_Lån*Angivna_Värden,Betalningsnummer,""), "") ->  | C145: =IFERROR(IF(Ej_Betalat_Lån*Angivna_Värden,Betalningsdatum,""), "") ->  | D145: =IFERROR(IF(Ej_Betalat_Lån*Angivna_Värden,Ingående_Saldo,""), "") ->  | E145: =IFERROR(IF(Ej_Betalat_Lån*Angivna_Värden,Månadsbetalning,""), "") ->  | F145: =IFERROR(IF(Ej_Betalat_Lån*Angivna_Värden,Amortering,""), "") ->  | G145: =IFERROR(IF(Ej_Betalat_Lån*Angivna_Värden,Ränta,""), "") ->  | H145: =IFERROR(IF(Ej_Betalat_Lån*Angivna_Värden,Utgående_Saldo,""), "") -> 
B146: =IFERROR(IF(Ej_Betalat_Lån*Angivna_Värden,Betalningsnummer,""), "") ->  | C146: =IFERROR(IF(Ej_Betalat_Lån*Angivna_Värden,Betalningsdatum,""), "") ->  | D146: =IFERROR(IF(Ej_Betalat_Lån*Angivna_Värden,Ingående_Saldo,""), "") ->  | E146: =IFERROR(IF(Ej_Betalat_Lån*Angivna_Värden,Månadsbetalning,""), "") ->  | F146: =IFERROR(IF(Ej_Betalat_Lån*Angivna_Värden,Amortering,""), "") ->  | G146: =IFERROR(IF(Ej_Betalat_Lån*Angivna_Värden,Ränta,""), "") ->  | H146: =IFERROR(IF(Ej_Betalat_Lån*Angivna_Värden,Utgående_Saldo,""), "") -> 
B147: =IFERROR(IF(Ej_Betalat_Lån*Angivna_Värden,Betalningsnummer,""), "") ->  | C147: =IFERROR(IF(Ej_Betalat_Lån*Angivna_Värden,Betalningsdatum,""), "") ->  | D147: =IFERROR(IF(Ej_Betalat_Lån*Angivna_Värden,Ingående_Saldo,""), "") ->  | E147: =IFERROR(IF(Ej_Betalat_Lån*Angivna_Värden,Månadsbetalning,""), "") ->  | F147: =IFERROR(IF(Ej_Betalat_Lån*Angivna_Värden,Amortering,""), "") ->  | G147: =IFERROR(IF(Ej_Betalat_Lån*Angivna_Värden,Ränta,""), "") ->  | H147: =IFERROR(IF(Ej_Betalat_Lån*Angivna_Värden,Utgående_Saldo,""), "") -> 
B148: =IFERROR(IF(Ej_Betalat_Lån*Angivna_Värden,Betalningsnummer,""), "") ->  | C148: =IFERROR(IF(Ej_Betalat_Lån*Angivna_Värden,Betalningsdatum,""), "") ->  | D148: =IFERROR(IF(Ej_Betalat_Lån*Angivna_Värden,Ingående_Saldo,""), "") ->  | E148: =IFERROR(IF(Ej_Betalat_Lån*Angivna_Värden,Månadsbetalning,""), "") ->  | F148: =IFERROR(IF(Ej_Betalat_Lån*Angivna_Värden,Amortering,""), "") ->  | G148: =IFERROR(IF(Ej_Betalat_Lån*Angivna_Värden,Ränta,""), "") ->  | H148: =IFERROR(IF(Ej_Betalat_Lån*Angivna_Värden,Utgående_Saldo,""), "") -> 
B149: =IFERROR(IF(Ej_Betalat_Lån*Angivna_Värden,Betalningsnummer,""), "") ->  | C149: =IFERROR(IF(Ej_Betalat_Lån*Angivna_Värden,Betalningsdatum,""), "") ->  | D149: =IFERROR(IF(Ej_Betalat_Lån*Angivna_Värden,Ingående_Saldo,""), "") ->  | E149: =IFERROR(IF(Ej_Betalat_Lån*Angivna_Värden,Månadsbetalning,""), "") ->  | F149: =IFERROR(IF(Ej_Betalat_Lån*Angivna_Värden,Amortering,""), "") ->  | G149: =IFERROR(IF(Ej_Betalat_Lån*Angivna_Värden,Ränta,""), "") ->  | H149: =IFERROR(IF(Ej_Betalat_Lån*Angivna_Värden,Utgående_Saldo,""), "") -> 
B150: =IFERROR(IF(Ej_Betalat_Lån*Angivna_Värden,Betalningsnummer,""), "") ->  | C150: =IFERROR(IF(Ej_Betalat_Lån*Angivna_Värden,Betalningsdatum,""), "") ->  | D150: =IFERROR(IF(Ej_Betalat_Lån*Angivna_Värden,Ingående_Saldo,""), "") ->  | E150: =IFERROR(IF(Ej_Betalat_Lån*Angivna_Värden,Månadsbetalning,""), "") ->  | F150: =IFERROR(IF(Ej_Betalat_Lån*Angivna_Värden,Amortering,""), "") ->  | G150: =IFERROR(IF(Ej_Betalat_Lån*Angivna_Värden,Ränta,""), "") ->  | H150: =IFERROR(IF(Ej_Betalat_Lån*Angivna_Värden,Utgående_Saldo,""), "") -> 
B151: =IFERROR(IF(Ej_Betalat_Lån*Angivna_Värden,Betalningsnummer,""), "") ->  | C151: =IFERROR(IF(Ej_Betalat_Lån*Angivna_Värden,Betalningsdatum,""), "") ->  | D151: =IFERROR(IF(Ej_Betalat_Lån*Angivna_Värden,Ingående_Saldo,""), "") ->  | E151: =IFERROR(IF(Ej_Betalat_Lån*Angivna_Värden,Månadsbetalning,""), "") ->  | F151: =IFERROR(IF(Ej_Betalat_Lån*Angivna_Värden,Amortering,""), "") ->  | G151: =IFERROR(IF(Ej_Betalat_Lån*Angivna_Värden,Ränta,""), "") ->  | H151: =IFERROR(IF(Ej_Betalat_Lån*Angivna_Värden,Utgående_Saldo,""), "") -> 
B152: =IFERROR(IF(Ej_Betalat_Lån*Angivna_Värden,Betalningsnummer,""), "") ->  | C152: =IFERROR(IF(Ej_Betalat_Lån*Angivna_Värden,Betalningsdatum,""), "") ->  | D152: =IFERROR(IF(Ej_Betalat_Lån*Angivna_Värden,Ingående_Saldo,""), "") ->  | E152: =IFERROR(IF(Ej_Betalat_Lån*Angivna_Värden,Månadsbetalning,""), "") ->  | F152: =IFERROR(IF(Ej_Betalat_Lån*Angivna_Värden,Amortering,""), "") ->  | G152: =IFERROR(IF(Ej_Betalat_Lån*Angivna_Värden,Ränta,""), "") ->  | H152: =IFERROR(IF(Ej_Betalat_Lån*Angivna_Värden,Utgående_Saldo,""), "") -> 
B153: =IFERROR(IF(Ej_Betalat_Lån*Angivna_Värden,Betalningsnummer,""), "") ->  | C153: =IFERROR(IF(Ej_Betalat_Lån*Angivna_Värden,Betalningsdatum,""), "") ->  | D153: =IFERROR(IF(Ej_Betalat_Lån*Angivna_Värden,Ingående_Saldo,""), "") ->  | E153: =IFERROR(IF(Ej_Betalat_Lån*Angivna_Värden,Månadsbetalning,""), "") ->  | F153: =IFERROR(IF(Ej_Betalat_Lån*Angivna_Värden,Amortering,""), "") ->  | G153: =IFERROR(IF(Ej_Betalat_Lån*Angivna_Värden,Ränta,""), "") ->  | H153: =IFERROR(IF(Ej_Betalat_Lån*Angivna_Värden,Utgående_Saldo,""), "") -> 
B154: =IFERROR(IF(Ej_Betalat_Lån*Angivna_Värden,Betalningsnummer,""), "") ->  | C154: =IFERROR(IF(Ej_Betalat_Lån*Angivna_Värden,Betalningsdatum,""), "") ->  | D154: =IFERROR(IF(Ej_Betalat_Lån*Angivna_Värden,Ingående_Saldo,""), "") ->  | E154: =IFERROR(IF(Ej_Betalat_Lån*Angivna_Värden,Månadsbetalning,""), "") ->  | F154: =IFERROR(IF(Ej_Betalat_Lån*Angivna_Värden,Amortering,""), "") ->  | G154: =IFERROR(IF(Ej_Betalat_Lån*Angivna_Värden,Ränta,""), "") ->  | H154: =IFERROR(IF(Ej_Betalat_Lån*Angivna_Värden,Utgående_Saldo,""), "") -> 
B155: =IFERROR(IF(Ej_Betalat_Lån*Angivna_Värden,Betalningsnummer,""), "") ->  | C155: =IFERROR(IF(Ej_Betalat_Lån*Angivna_Värden,Betalningsdatum,""), "") ->  | D155: =IFERROR(IF(Ej_Betalat_Lån*Angivna_Värden,Ingående_Saldo,""), "") ->  | E155: =IFERROR(IF(Ej_Betalat_Lån*Angivna_Värden,Månadsbetalning,""), "") ->  | F155: =IFERROR(IF(Ej_Betalat_Lån*Angivna_Värden,Amortering,""), "") ->  | G155: =IFERROR(IF(Ej_Betalat_Lån*Angivna_Värden,Ränta,""), "") ->  | H155: =IFERROR(IF(Ej_Betalat_Lån*Angivna_Värden,Utgående_Saldo,""), "") -> 
B156: =IFERROR(IF(Ej_Betalat_Lån*Angivna_Värden,Betalningsnummer,""), "") ->  | C156: =IFERROR(IF(Ej_Betalat_Lån*Angivna_Värden,Betalningsdatum,""), "") ->  | D156: =IFERROR(IF(Ej_Betalat_Lån*Angivna_Värden,Ingående_Saldo,""), "") ->  | E156: =IFERROR(IF(Ej_Betalat_Lån*Angivna_Värden,Månadsbetalning,""), "") ->  | F156: =IFERROR(IF(Ej_Betalat_Lån*Angivna_Värden,Amortering,""), "") ->  | G156: =IFERROR(IF(Ej_Betalat_Lån*Angivna_Värden,Ränta,""), "") ->  | H156: =IFERROR(IF(Ej_Betalat_Lån*Angivna_Värden,Utgående_Saldo,""), "") -> 
B157: =IFERROR(IF(Ej_Betalat_Lån*Angivna_Värden,Betalningsnummer,""), "") ->  | C157: =IFERROR(IF(Ej_Betalat_Lån*Angivna_Värden,Betalningsdatum,""), "") ->  | D157: =IFERROR(IF(Ej_Betalat_Lån*Angivna_Värden,Ingående_Saldo,""), "") ->  | E157: =IFERROR(IF(Ej_Betalat_Lån*Angivna_Värden,Månadsbetalning,""), "") ->  | F157: =IFERROR(IF(Ej_Betalat_Lån*Angivna_Värden,Amortering,""), "") ->  | G157: =IFERROR(IF(Ej_Betalat_Lån*Angivna_Värden,Ränta,""), "") ->  | H157: =IFERROR(IF(Ej_Betalat_Lån*Angivna_Värden,Utgående_Saldo,""), "") -> 
B158: =IFERROR(IF(Ej_Betalat_Lån*Angivna_Värden,Betalningsnummer,""), "") ->  | C158: =IFERROR(IF(Ej_Betalat_Lån*Angivna_Värden,Betalningsdatum,""), "") ->  | D158: =IFERROR(IF(Ej_Betalat_Lån*Angivna_Värden,Ingående_Saldo,""), "") ->  | E158: =IFERROR(IF(Ej_Betalat_Lån*Angivna_Värden,Månadsbetalning,""), "") ->  | F158: =IFERROR(IF(Ej_Betalat_Lån*Angivna_Värden,Amortering,""), "") ->  | G158: =IFERROR(IF(Ej_Betalat_Lån*Angivna_Värden,Ränta,""), "") ->  | H158: =IFERROR(IF(Ej_Betalat_Lån*Angivna_Värden,Utgående_Saldo,""), "") -> 
B159: =IFERROR(IF(Ej_Betalat_Lån*Angivna_Värden,Betalningsnummer,""), "") ->  | C159: =IFERROR(IF(Ej_Betalat_Lån*Angivna_Värden,Betalningsdatum,""), "") ->  | D159: =IFERROR(IF(Ej_Betalat_Lån*Angivna_Värden,Ingående_Saldo,""), "") ->  | E159: =IFERROR(IF(Ej_Betalat_Lån*Angivna_Värden,Månadsbetalning,""), "") ->  | F159: =IFERROR(IF(Ej_Betalat_Lån*Angivna_Värden,Amortering,""), "") ->  | G159: =IFERROR(IF(Ej_Betalat_Lån*Angivna_Värden,Ränta,""), "") ->  | H159: =IFERROR(IF(Ej_Betalat_Lån*Angivna_Värden,Utgående_Saldo,""), "") -> 
B160: =IFERROR(IF(Ej_Betalat_Lån*Angivna_Värden,Betalningsnummer,""), "") ->  | C160: =IFERROR(IF(Ej_Betalat_Lån*Angivna_Värden,Betalningsdatum,""), "") ->  | D160: =IFERROR(IF(Ej_Betalat_Lån*Angivna_Värden,Ingående_Saldo,""), "") ->  | E160: =IFERROR(IF(Ej_Betalat_Lån*Angivna_Värden,Månadsbetalning,""), "") ->  | F160: =IFERROR(IF(Ej_Betalat_Lån*Angivna_Värden,Amortering,""), "") ->  | G160: =IFERROR(IF(Ej_Betalat_Lån*Angivna_Värden,Ränta,""), "") ->  | H160: =IFERROR(IF(Ej_Betalat_Lån*Angivna_Värden,Utgående_Saldo,""), "") -> 
B161: =IFERROR(IF(Ej_Betalat_Lån*Angivna_Värden,Betalningsnummer,""), "") ->  | C161: =IFERROR(IF(Ej_Betalat_Lån*Angivna_Värden,Betalningsdatum,""), "") ->  | D161: =IFERROR(IF(Ej_Betalat_Lån*Angivna_Värden,Ingående_Saldo,""), "") ->  | E161: =IFERROR(IF(Ej_Betalat_Lån*Angivna_Värden,Månadsbetalning,""), "") ->  | F161: =IFERROR(IF(Ej_Betalat_Lån*Angivna_Värden,Amortering,""), "") ->  | G161: =IFERROR(IF(Ej_Betalat_Lån*Angivna_Värden,Ränta,""), "") ->  | H161: =IFERROR(IF(Ej_Betalat_Lån*Angivna_Värden,Utgående_Saldo,""), "") -> 
B162: =IFERROR(IF(Ej_Betalat_Lån*Angivna_Värden,Betalningsnummer,""), "") ->  | C162: =IFERROR(IF(Ej_Betalat_Lån*Angivna_Värden,Betalningsdatum,""), "") ->  | D162: =IFERROR(IF(Ej_Betalat_Lån*Angivna_Värden,Ingående_Saldo,""), "") ->  | E162: =IFERROR(IF(Ej_Betalat_Lån*Angivna_Värden,Månadsbetalning,""), "") ->  | F162: =IFERROR(IF(Ej_Betalat_Lån*Angivna_Värden,Amortering,""), "") ->  | G162: =IFERROR(IF(Ej_Betalat_Lån*Angivna_Värden,Ränta,""), "") ->  | H162: =IFERROR(IF(Ej_Betalat_Lån*Angivna_Värden,Utgående_Saldo,""), "") -> 
B163: =IFERROR(IF(Ej_Betalat_Lån*Angivna_Värden,Betalningsnummer,""), "") ->  | C163: =IFERROR(IF(Ej_Betalat_Lån*Angivna_Värden,Betalningsdatum,""), "") ->  | D163: =IFERROR(IF(Ej_Betalat_Lån*Angivna_Värden,Ingående_Saldo,""), "") ->  | E163: =IFERROR(IF(Ej_Betalat_Lån*Angivna_Värden,Månadsbetalning,""), "") ->  | F163: =IFERROR(IF(Ej_Betalat_Lån*Angivna_Värden,Amortering,""), "") ->  | G163: =IFERROR(IF(Ej_Betalat_Lån*Angivna_Värden,Ränta,""), "") ->  | H163: =IFERROR(IF(Ej_Betalat_Lån*Angivna_Värden,Utgående_Saldo,""), "") -> 
B164: =IFERROR(IF(Ej_Betalat_Lån*Angivna_Värden,Betalningsnummer,""), "") ->  | C164: =IFERROR(IF(Ej_Betalat_Lån*Angivna_Värden,Betalningsdatum,""), "") ->  | D164: =IFERROR(IF(Ej_Betalat_Lån*Angivna_Värden,Ingående_Saldo,""), "") ->  | E164: =IFERROR(IF(Ej_Betalat_Lån*Angivna_Värden,Månadsbetalning,""), "") ->  | F164: =IFERROR(IF(Ej_Betalat_Lån*Angivna_Värden,Amortering,""), "") ->  | G164: =IFERROR(IF(Ej_Betalat_Lån*Angivna_Värden,Ränta,""), "") ->  | H164: =IFERROR(IF(Ej_Betalat_Lån*Angivna_Värden,Utgående_Saldo,""), "") -> 
B165: =IFERROR(IF(Ej_Betalat_Lån*Angivna_Värden,Betalningsnummer,""), "") ->  | C165: =IFERROR(IF(Ej_Betalat_Lån*Angivna_Värden,Betalningsdatum,""), "") ->  | D165: =IFERROR(IF(Ej_Betalat_Lån*Angivna_Värden,Ingående_Saldo,""), "") ->  | E165: =IFERROR(IF(Ej_Betalat_Lån*Angivna_Värden,Månadsbetalning,""), "") ->  | F165: =IFERROR(IF(Ej_Betalat_Lån*Angivna_Värden,Amortering,""), "") ->  | G165: =IFERROR(IF(Ej_Betalat_Lån*Angivna_Värden,Ränta,""), "") ->  | H165: =IFERROR(IF(Ej_Betalat_Lån*Angivna_Värden,Utgående_Saldo,""), "") -> 
B166: =IFERROR(IF(Ej_Betalat_Lån*Angivna_Värden,Betalningsnummer,""), "") ->  | C166: =IFERROR(IF(Ej_Betalat_Lån*Angivna_Värden,Betalningsdatum,""), "") ->  | D166: =IFERROR(IF(Ej_Betalat_Lån*Angivna_Värden,Ingående_Saldo,""), "") ->  | E166: =IFERROR(IF(Ej_Betalat_Lån*Angivna_Värden,Månadsbetalning,""), "") ->  | F166: =IFERROR(IF(Ej_Betalat_Lån*Angivna_Värden,Amortering,""), "") ->  | G166: =IFERROR(IF(Ej_Betalat_Lån*Angivna_Värden,Ränta,""), "") ->  | H166: =IFERROR(IF(Ej_Betalat_Lån*Angivna_Värden,Utgående_Saldo,""), "") -> 
B167: =IFERROR(IF(Ej_Betalat_Lån*Angivna_Värden,Betalningsnummer,""), "") ->  | C167: =IFERROR(IF(Ej_Betalat_Lån*Angivna_Värden,Betalningsdatum,""), "") ->  | D167: =IFERROR(IF(Ej_Betalat_Lån*Angivna_Värden,Ingående_Saldo,""), "") ->  | E167: =IFERROR(IF(Ej_Betalat_Lån*Angivna_Värden,Månadsbetalning,""), "") ->  | F167: =IFERROR(IF(Ej_Betalat_Lån*Angivna_Värden,Amortering,""), "") ->  | G167: =IFERROR(IF(Ej_Betalat_Lån*Angivna_Värden,Ränta,""), "") ->  | H167: =IFERROR(IF(Ej_Betalat_Lån*Angivna_Värden,Utgående_Saldo,""), "") -> 
B168: =IFERROR(IF(Ej_Betalat_Lån*Angivna_Värden,Betalningsnummer,""), "") ->  | C168: =IFERROR(IF(Ej_Betalat_Lån*Angivna_Värden,Betalningsdatum,""), "") ->  | D168: =IFERROR(IF(Ej_Betalat_Lån*Angivna_Värden,Ingående_Saldo,""), "") ->  | E168: =IFERROR(IF(Ej_Betalat_Lån*Angivna_Värden,Månadsbetalning,""), "") ->  | F168: =IFERROR(IF(Ej_Betalat_Lån*Angivna_Värden,Amortering,""), "") ->  | G168: =IFERROR(IF(Ej_Betalat_Lån*Angivna_Värden,Ränta,""), "") ->  | H168: =IFERROR(IF(Ej_Betalat_Lån*Angivna_Värden,Utgående_Saldo,""), "") -> 
B169: =IFERROR(IF(Ej_Betalat_Lån*Angivna_Värden,Betalningsnummer,""), "") ->  | C169: =IFERROR(IF(Ej_Betalat_Lån*Angivna_Värden,Betalningsdatum,""), "") ->  | D169: =IFERROR(IF(Ej_Betalat_Lån*Angivna_Värden,Ingående_Saldo,""), "") ->  | E169: =IFERROR(IF(Ej_Betalat_Lån*Angivna_Värden,Månadsbetalning,""), "") ->  | F169: =IFERROR(IF(Ej_Betalat_Lån*Angivna_Värden,Amortering,""), "") ->  | G169: =IFERROR(IF(Ej_Betalat_Lån*Angivna_Värden,Ränta,""), "") ->  | H169: =IFERROR(IF(Ej_Betalat_Lån*Angivna_Värden,Utgående_Saldo,""), "") -> 
B170: =IFERROR(IF(Ej_Betalat_Lån*Angivna_Värden,Betalningsnummer,""), "") ->  | C170: =IFERROR(IF(Ej_Betalat_Lån*Angivna_Värden,Betalningsdatum,""), "") ->  | D170: =IFERROR(IF(Ej_Betalat_Lån*Angivna_Värden,Ingående_Saldo,""), "") ->  | E170: =IFERROR(IF(Ej_Betalat_Lån*Angivna_Värden,Månadsbetalning,""), "") ->  | F170: =IFERROR(IF(Ej_Betalat_Lån*Angivna_Värden,Amortering,""), "") ->  | G170: =IFERROR(IF(Ej_Betalat_Lån*Angivna_Värden,Ränta,""), "") ->  | H170: =IFERROR(IF(Ej_Betalat_Lån*Angivna_Värden,Utgående_Saldo,""), "") -> 
B171: =IFERROR(IF(Ej_Betalat_Lån*Angivna_Värden,Betalningsnummer,""), "") ->  | C171: =IFERROR(IF(Ej_Betalat_Lån*Angivna_Värden,Betalningsdatum,""), "") ->  | D171: =IFERROR(IF(Ej_Betalat_Lån*Angivna_Värden,Ingående_Saldo,""), "") ->  | E171: =IFERROR(IF(Ej_Betalat_Lån*Angivna_Värden,Månadsbetalning,""), "") ->  | F171: =IFERROR(IF(Ej_Betalat_Lån*Angivna_Värden,Amortering,""), "") ->  | G171: =IFERROR(IF(Ej_Betalat_Lån*Angivna_Värden,Ränta,""), "") ->  | H171: =IFERROR(IF(Ej_Betalat_Lån*Angivna_Värden,Utgående_Saldo,""), "") -> 
B172: =IFERROR(IF(Ej_Betalat_Lån*Angivna_Värden,Betalningsnummer,""), "") ->  | C172: =IFERROR(IF(Ej_Betalat_Lån*Angivna_Värden,Betalningsdatum,""), "") ->  | D172: =IFERROR(IF(Ej_Betalat_Lån*Angivna_Värden,Ingående_Saldo,""), "") ->  | E172: =IFERROR(IF(Ej_Betalat_Lån*Angivna_Värden,Månadsbetalning,""), "") ->  | F172: =IFERROR(IF(Ej_Betalat_Lån*Angivna_Värden,Amortering,""), "") ->  | G172: =IFERROR(IF(Ej_Betalat_Lån*Angivna_Värden,Ränta,""), "") ->  | H172: =IFERROR(IF(Ej_Betalat_Lån*Angivna_Värden,Utgående_Saldo,""), "") -> 
B173: =IFERROR(IF(Ej_Betalat_Lån*Angivna_Värden,Betalningsnummer,""), "") ->  | C173: =IFERROR(IF(Ej_Betalat_Lån*Angivna_Värden,Betalningsdatum,""), "") ->  | D173: =IFERROR(IF(Ej_Betalat_Lån*Angivna_Värden,Ingående_Saldo,""), "") ->  | E173: =IFERROR(IF(Ej_Betalat_Lån*Angivna_Värden,Månadsbetalning,""), "") ->  | F173: =IFERROR(IF(Ej_Betalat_Lån*Angivna_Värden,Amortering,""), "") ->  | G173: =IFERROR(IF(Ej_Betalat_Lån*Angivna_Värden,Ränta,""), "") ->  | H173: =IFERROR(IF(Ej_Betalat_Lån*Angivna_Värden,Utgående_Saldo,""), "") -> 
B174: =IFERROR(IF(Ej_Betalat_Lån*Angivna_Värden,Betalningsnummer,""), "") ->  | C174: =IFERROR(IF(Ej_Betalat_Lån*Angivna_Värden,Betalningsdatum,""), "") ->  | D174: =IFERROR(IF(Ej_Betalat_Lån*Angivna_Värden,Ingående_Saldo,""), "") ->  | E174: =IFERROR(IF(Ej_Betalat_Lån*Angivna_Värden,Månadsbetalning,""), "") ->  | F174: =IFERROR(IF(Ej_Betalat_Lån*Angivna_Värden,Amortering,""), "") ->  | G174: =IFERROR(IF(Ej_Betalat_Lån*Angivna_Värden,Ränta,""), "") ->  | H174: =IFERROR(IF(Ej_Betalat_Lån*Angivna_Värden,Utgående_Saldo,""), "") -> 
B175: =IFERROR(IF(Ej_Betalat_Lån*Angivna_Värden,Betalningsnummer,""), "") ->  | C175: =IFERROR(IF(Ej_Betalat_Lån*Angivna_Värden,Betalningsdatum,""), "") ->  | D175: =IFERROR(IF(Ej_Betalat_Lån*Angivna_Värden,Ingående_Saldo,""), "") ->  | E175: =IFERROR(IF(Ej_Betalat_Lån*Angivna_Värden,Månadsbetalning,""), "") ->  | F175: =IFERROR(IF(Ej_Betalat_Lån*Angivna_Värden,Amortering,""), "") ->  | G175: =IFERROR(IF(Ej_Betalat_Lån*Angivna_Värden,Ränta,""), "") ->  | H175: =IFERROR(IF(Ej_Betalat_Lån*Angivna_Värden,Utgående_Saldo,""), "") -> 
B176: =IFERROR(IF(Ej_Betalat_Lån*Angivna_Värden,Betalningsnummer,""), "") ->  | C176: =IFERROR(IF(Ej_Betalat_Lån*Angivna_Värden,Betalningsdatum,""), "") ->  | D176: =IFERROR(IF(Ej_Betalat_Lån*Angivna_Värden,Ingående_Saldo,""), "") ->  | E176: =IFERROR(IF(Ej_Betalat_Lån*Angivna_Värden,Månadsbetalning,""), "") ->  | F176: =IFERROR(IF(Ej_Betalat_Lån*Angivna_Värden,Amortering,""), "") ->  | G176: =IFERROR(IF(Ej_Betalat_Lån*Angivna_Värden,Ränta,""), "") ->  | H176: =IFERROR(IF(Ej_Betalat_Lån*Angivna_Värden,Utgående_Saldo,""), "") -> 
B177: =IFERROR(IF(Ej_Betalat_Lån*Angivna_Värden,Betalningsnummer,""), "") ->  | C177: =IFERROR(IF(Ej_Betalat_Lån*Angivna_Värden,Betalningsdatum,""), "") ->  | D177: =IFERROR(IF(Ej_Betalat_Lån*Angivna_Värden,Ingående_Saldo,""), "") ->  | E177: =IFERROR(IF(Ej_Betalat_Lån*Angivna_Värden,Månadsbetalning,""), "") ->  | F177: =IFERROR(IF(Ej_Betalat_Lån*Angivna_Värden,Amortering,""), "") ->  | G177: =IFERROR(IF(Ej_Betalat_Lån*Angivna_Värden,Ränta,""), "") ->  | H177: =IFERROR(IF(Ej_Betalat_Lån*Angivna_Värden,Utgående_Saldo,""), "") -> 
B178: =IFERROR(IF(Ej_Betalat_Lån*Angivna_Värden,Betalningsnummer,""), "") ->  | C178: =IFERROR(IF(Ej_Betalat_Lån*Angivna_Värden,Betalningsdatum,""), "") ->  | D178: =IFERROR(IF(Ej_Betalat_Lån*Angivna_Värden,Ingående_Saldo,""), "") ->  | E178: =IFERROR(IF(Ej_Betalat_Lån*Angivna_Värden,Månadsbetalning,""), "") ->  | F178: =IFERROR(IF(Ej_Betalat_Lån*Angivna_Värden,Amortering,""), "") ->  | G178: =IFERROR(IF(Ej_Betalat_Lån*Angivna_Värden,Ränta,""), "") ->  | H178: =IFERROR(IF(Ej_Betalat_Lån*Angivna_Värden,Utgående_Saldo,""), "") -> 
B179: =IFERROR(IF(Ej_Betalat_Lån*Angivna_Värden,Betalningsnummer,""), "") ->  | C179: =IFERROR(IF(Ej_Betalat_Lån*Angivna_Värden,Betalningsdatum,""), "") ->  | D179: =IFERROR(IF(Ej_Betalat_Lån*Angivna_Värden,Ingående_Saldo,""), "") ->  | E179: =IFERROR(IF(Ej_Betalat_Lån*Angivna_Värden,Månadsbetalning,""), "") ->  | F179: =IFERROR(IF(Ej_Betalat_Lån*Angivna_Värden,Amortering,""), "") ->  | G179: =IFERROR(IF(Ej_Betalat_Lån*Angivna_Värden,Ränta,""), "") ->  | H179: =IFERROR(IF(Ej_Betalat_Lån*Angivna_Värden,Utgående_Saldo,""), "") -> 
B180: =IFERROR(IF(Ej_Betalat_Lån*Angivna_Värden,Betalningsnummer,""), "") ->  | C180: =IFERROR(IF(Ej_Betalat_Lån*Angivna_Värden,Betalningsdatum,""), "") ->  | D180: =IFERROR(IF(Ej_Betalat_Lån*Angivna_Värden,Ingående_Saldo,""), "") ->  | E180: =IFERROR(IF(Ej_Betalat_Lån*Angivna_Värden,Månadsbetalning,""), "") ->  | F180: =IFERROR(IF(Ej_Betalat_Lån*Angivna_Värden,Amortering,""), "") ->  | G180: =IFERROR(IF(Ej_Betalat_Lån*Angivna_Värden,Ränta,""), "") ->  | H180: =IFERROR(IF(Ej_Betalat_Lån*Angivna_Värden,Utgående_Saldo,""), "") -> 
B181: =IFERROR(IF(Ej_Betalat_Lån*Angivna_Värden,Betalningsnummer,""), "") ->  | C181: =IFERROR(IF(Ej_Betalat_Lån*Angivna_Värden,Betalningsdatum,""), "") ->  | D181: =IFERROR(IF(Ej_Betalat_Lån*Angivna_Värden,Ingående_Saldo,""), "") ->  | E181: =IFERROR(IF(Ej_Betalat_Lån*Angivna_Värden,Månadsbetalning,""), "") ->  | F181: =IFERROR(IF(Ej_Betalat_Lån*Angivna_Värden,Amortering,""), "") ->  | G181: =IFERROR(IF(Ej_Betalat_Lån*Angivna_Värden,Ränta,""), "") ->  | H181: =IFERROR(IF(Ej_Betalat_Lån*Angivna_Värden,Utgående_Saldo,""), "") -> 
B182: =IFERROR(IF(Ej_Betalat_Lån*Angivna_Värden,Betalningsnummer,""), "") ->  | C182: =IFERROR(IF(Ej_Betalat_Lån*Angivna_Värden,Betalningsdatum,""), "") ->  | D182: =IFERROR(IF(Ej_Betalat_Lån*Angivna_Värden,Ingående_Saldo,""), "") ->  | E182: =IFERROR(IF(Ej_Betalat_Lån*Angivna_Värden,Månadsbetalning,""), "") ->  | F182: =IFERROR(IF(Ej_Betalat_Lån*Angivna_Värden,Amortering,""), "") ->  | G182: =IFERROR(IF(Ej_Betalat_Lån*Angivna_Värden,Ränta,""), "") ->  | H182: =IFERROR(IF(Ej_Betalat_Lån*Angivna_Värden,Utgående_Saldo,""), "") -> 
B183: =IFERROR(IF(Ej_Betalat_Lån*Angivna_Värden,Betalningsnummer,""), "") ->  | C183: =IFERROR(IF(Ej_Betalat_Lån*Angivna_Värden,Betalningsdatum,""), "") ->  | D183: =IFERROR(IF(Ej_Betalat_Lån*Angivna_Värden,Ingående_Saldo,""), "") ->  | E183: =IFERROR(IF(Ej_Betalat_Lån*Angivna_Värden,Månadsbetalning,""), "") ->  | F183: =IFERROR(IF(Ej_Betalat_Lån*Angivna_Värden,Amortering,""), "") ->  | G183: =IFERROR(IF(Ej_Betalat_Lån*Angivna_Värden,Ränta,""), "") ->  | H183: =IFERROR(IF(Ej_Betalat_Lån*Angivna_Värden,Utgående_Saldo,""), "") -> 
B184: =IFERROR(IF(Ej_Betalat_Lån*Angivna_Värden,Betalningsnummer,""), "") ->  | C184: =IFERROR(IF(Ej_Betalat_Lån*Angivna_Värden,Betalningsdatum,""), "") ->  | D184: =IFERROR(IF(Ej_Betalat_Lån*Angivna_Värden,Ingående_Saldo,""), "") ->  | E184: =IFERROR(IF(Ej_Betalat_Lån*Angivna_Värden,Månadsbetalning,""), "") ->  | F184: =IFERROR(IF(Ej_Betalat_Lån*Angivna_Värden,Amortering,""), "") ->  | G184: =IFERROR(IF(Ej_Betalat_Lån*Angivna_Värden,Ränta,""), "") ->  | H184: =IFERROR(IF(Ej_Betalat_Lån*Angivna_Värden,Utgående_Saldo,""), "") -> 
B185: =IFERROR(IF(Ej_Betalat_Lån*Angivna_Värden,Betalningsnummer,""), "") ->  | C185: =IFERROR(IF(Ej_Betalat_Lån*Angivna_Värden,Betalningsdatum,""), "") ->  | D185: =IFERROR(IF(Ej_Betalat_Lån*Angivna_Värden,Ingående_Saldo,""), "") ->  | E185: =IFERROR(IF(Ej_Betalat_Lån*Angivna_Värden,Månadsbetalning,""), "") ->  | F185: =IFERROR(IF(Ej_Betalat_Lån*Angivna_Värden,Amortering,""), "") ->  | G185: =IFERROR(IF(Ej_Betalat_Lån*Angivna_Värden,Ränta,""), "") ->  | H185: =IFERROR(IF(Ej_Betalat_Lån*Angivna_Värden,Utgående_Saldo,""), "") -> 
B186: =IFERROR(IF(Ej_Betalat_Lån*Angivna_Värden,Betalningsnummer,""), "") ->  | C186: =IFERROR(IF(Ej_Betalat_Lån*Angivna_Värden,Betalningsdatum,""), "") ->  | D186: =IFERROR(IF(Ej_Betalat_Lån*Angivna_Värden,Ingående_Saldo,""), "") ->  | E186: =IFERROR(IF(Ej_Betalat_Lån*Angivna_Värden,Månadsbetalning,""), "") ->  | F186: =IFERROR(IF(Ej_Betalat_Lån*Angivna_Värden,Amortering,""), "") ->  | G186: =IFERROR(IF(Ej_Betalat_Lån*Angivna_Värden,Ränta,""), "") ->  | H186: =IFERROR(IF(Ej_Betalat_Lån*Angivna_Värden,Utgående_Saldo,""), "") -> 
B187: =IFERROR(IF(Ej_Betalat_Lån*Angivna_Värden,Betalningsnummer,""), "") ->  | C187: =IFERROR(IF(Ej_Betalat_Lån*Angivna_Värden,Betalningsdatum,""), "") ->  | D187: =IFERROR(IF(Ej_Betalat_Lån*Angivna_Värden,Ingående_Saldo,""), "") ->  | E187: =IFERROR(IF(Ej_Betalat_Lån*Angivna_Värden,Månadsbetalning,""), "") ->  | F187: =IFERROR(IF(Ej_Betalat_Lån*Angivna_Värden,Amortering,""), "") ->  | G187: =IFERROR(IF(Ej_Betalat_Lån*Angivna_Värden,Ränta,""), "") ->  | H187: =IFERROR(IF(Ej_Betalat_Lån*Angivna_Värden,Utgående_Saldo,""), "") -> 
B188: =IFERROR(IF(Ej_Betalat_Lån*Angivna_Värden,Betalningsnummer,""), "") ->  | C188: =IFERROR(IF(Ej_Betalat_Lån*Angivna_Värden,Betalningsdatum,""), "") ->  | D188: =IFERROR(IF(Ej_Betalat_Lån*Angivna_Värden,Ingående_Saldo,""), "") ->  | E188: =IFERROR(IF(Ej_Betalat_Lån*Angivna_Värden,Månadsbetalning,""), "") ->  | F188: =IFERROR(IF(Ej_Betalat_Lån*Angivna_Värden,Amortering,""), "") ->  | G188: =IFERROR(IF(Ej_Betalat_Lån*Angivna_Värden,Ränta,""), "") ->  | H188: =IFERROR(IF(Ej_Betalat_Lån*Angivna_Värden,Utgående_Saldo,""), "") -> 
B189: =IFERROR(IF(Ej_Betalat_Lån*Angivna_Värden,Betalningsnummer,""), "") ->  | C189: =IFERROR(IF(Ej_Betalat_Lån*Angivna_Värden,Betalningsdatum,""), "") ->  | D189: =IFERROR(IF(Ej_Betalat_Lån*Angivna_Värden,Ingående_Saldo,""), "") ->  | E189: =IFERROR(IF(Ej_Betalat_Lån*Angivna_Värden,Månadsbetalning,""), "") ->  | F189: =IFERROR(IF(Ej_Betalat_Lån*Angivna_Värden,Amortering,""), "") ->  | G189: =IFERROR(IF(Ej_Betalat_Lån*Angivna_Värden,Ränta,""), "") ->  | H189: =IFERROR(IF(Ej_Betalat_Lån*Angivna_Värden,Utgående_Saldo,""), "") -> 
B190: =IFERROR(IF(Ej_Betalat_Lån*Angivna_Värden,Betalningsnummer,""), "") ->  | C190: =IFERROR(IF(Ej_Betalat_Lån*Angivna_Värden,Betalningsdatum,""), "") ->  | D190: =IFERROR(IF(Ej_Betalat_Lån*Angivna_Värden,Ingående_Saldo,""), "") ->  | E190: =IFERROR(IF(Ej_Betalat_Lån*Angivna_Värden,Månadsbetalning,""), "") ->  | F190: =IFERROR(IF(Ej_Betalat_Lån*Angivna_Värden,Amortering,""), "") ->  | G190: =IFERROR(IF(Ej_Betalat_Lån*Angivna_Värden,Ränta,""), "") ->  | H190: =IFERROR(IF(Ej_Betalat_Lån*Angivna_Värden,Utgående_Saldo,""), "") -> 
B191: =IFERROR(IF(Ej_Betalat_Lån*Angivna_Värden,Betalningsnummer,""), "") ->  | C191: =IFERROR(IF(Ej_Betalat_Lån*Angivna_Värden,Betalningsdatum,""), "") ->  | D191: =IFERROR(IF(Ej_Betalat_Lån*Angivna_Värden,Ingående_Saldo,""), "") ->  | E191: =IFERROR(IF(Ej_Betalat_Lån*Angivna_Värden,Månadsbetalning,""), "") ->  | F191: =IFERROR(IF(Ej_Betalat_Lån*Angivna_Värden,Amortering,""), "") ->  | G191: =IFERROR(IF(Ej_Betalat_Lån*Angivna_Värden,Ränta,""), "") ->  | H191: =IFERROR(IF(Ej_Betalat_Lån*Angivna_Värden,Utgående_Saldo,""), "") -> 
B192: =IFERROR(IF(Ej_Betalat_Lån*Angivna_Värden,Betalningsnummer,""), "") ->  | C192: =IFERROR(IF(Ej_Betalat_Lån*Angivna_Värden,Betalningsdatum,""), "") ->  | D192: =IFERROR(IF(Ej_Betalat_Lån*Angivna_Värden,Ingående_Saldo,""), "") ->  | E192: =IFERROR(IF(Ej_Betalat_Lån*Angivna_Värden,Månadsbetalning,""), "") ->  | F192: =IFERROR(IF(Ej_Betalat_Lån*Angivna_Värden,Amortering,""), "") ->  | G192: =IFERROR(IF(Ej_Betalat_Lån*Angivna_Värden,Ränta,""), "") ->  | H192: =IFERROR(IF(Ej_Betalat_Lån*Angivna_Värden,Utgående_Saldo,""), "") -> 
B193: =IFERROR(IF(Ej_Betalat_Lån*Angivna_Värden,Betalningsnummer,""), "") ->  | C193: =IFERROR(IF(Ej_Betalat_Lån*Angivna_Värden,Betalningsdatum,""), "") ->  | D193: =IFERROR(IF(Ej_Betalat_Lån*Angivna_Värden,Ingående_Saldo,""), "") ->  | E193: =IFERROR(IF(Ej_Betalat_Lån*Angivna_Värden,Månadsbetalning,""), "") ->  | F193: =IFERROR(IF(Ej_Betalat_Lån*Angivna_Värden,Amortering,""), "") ->  | G193: =IFERROR(IF(Ej_Betalat_Lån*Angivna_Värden,Ränta,""), "") ->  | H193: =IFERROR(IF(Ej_Betalat_Lån*Angivna_Värden,Utgående_Saldo,""), "") -> 
B194: =IFERROR(IF(Ej_Betalat_Lån*Angivna_Värden,Betalningsnummer,""), "") ->  | C194: =IFERROR(IF(Ej_Betalat_Lån*Angivna_Värden,Betalningsdatum,""), "") ->  | D194: =IFERROR(IF(Ej_Betalat_Lån*Angivna_Värden,Ingående_Saldo,""), "") ->  | E194: =IFERROR(IF(Ej_Betalat_Lån*Angivna_Värden,Månadsbetalning,""), "") ->  | F194: =IFERROR(IF(Ej_Betalat_Lån*Angivna_Värden,Amortering,""), "") ->  | G194: =IFERROR(IF(Ej_Betalat_Lån*Angivna_Värden,Ränta,""), "") ->  | H194: =IFERROR(IF(Ej_Betalat_Lån*Angivna_Värden,Utgående_Saldo,""), "") -> 
B195: =IFERROR(IF(Ej_Betalat_Lån*Angivna_Värden,Betalningsnummer,""), "") ->  | C195: =IFERROR(IF(Ej_Betalat_Lån*Angivna_Värden,Betalningsdatum,""), "") ->  | D195: =IFERROR(IF(Ej_Betalat_Lån*Angivna_Värden,Ingående_Saldo,""), "") ->  | E195: =IFERROR(IF(Ej_Betalat_Lån*Angivna_Värden,Månadsbetalning,""), "") ->  | F195: =IFERROR(IF(Ej_Betalat_Lån*Angivna_Värden,Amortering,""), "") ->  | G195: =IFERROR(IF(Ej_Betalat_Lån*Angivna_Värden,Ränta,""), "") ->  | H195: =IFERROR(IF(Ej_Betalat_Lån*Angivna_Värden,Utgående_Saldo,""), "") -> 
B196: =IFERROR(IF(Ej_Betalat_Lån*Angivna_Värden,Betalningsnummer,""), "") ->  | C196: =IFERROR(IF(Ej_Betalat_Lån*Angivna_Värden,Betalningsdatum,""), "") ->  | D196: =IFERROR(IF(Ej_Betalat_Lån*Angivna_Värden,Ingående_Saldo,""), "") ->  | E196: =IFERROR(IF(Ej_Betalat_Lån*Angivna_Värden,Månadsbetalning,""), "") ->  | F196: =IFERROR(IF(Ej_Betalat_Lån*Angivna_Värden,Amortering,""), "") ->  | G196: =IFERROR(IF(Ej_Betalat_Lån*Angivna_Värden,Ränta,""), "") ->  | H196: =IFERROR(IF(Ej_Betalat_Lån*Angivna_Värden,Utgående_Saldo,""), "") -> 
B197: =IFERROR(IF(Ej_Betalat_Lån*Angivna_Värden,Betalningsnummer,""), "") ->  | C197: =IFERROR(IF(Ej_Betalat_Lån*Angivna_Värden,Betalningsdatum,""), "") ->  | D197: =IFERROR(IF(Ej_Betalat_Lån*Angivna_Värden,Ingående_Saldo,""), "") ->  | E197: =IFERROR(IF(Ej_Betalat_Lån*Angivna_Värden,Månadsbetalning,""), "") ->  | F197: =IFERROR(IF(Ej_Betalat_Lån*Angivna_Värden,Amortering,""), "") ->  | G197: =IFERROR(IF(Ej_Betalat_Lån*Angivna_Värden,Ränta,""), "") ->  | H197: =IFERROR(IF(Ej_Betalat_Lån*Angivna_Värden,Utgående_Saldo,""), "") -> 
B198: =IFERROR(IF(Ej_Betalat_Lån*Angivna_Värden,Betalningsnummer,""), "") ->  | C198: =IFERROR(IF(Ej_Betalat_Lån*Angivna_Värden,Betalningsdatum,""), "") ->  | D198: =IFERROR(IF(Ej_Betalat_Lån*Angivna_Värden,Ingående_Saldo,""), "") ->  | E198: =IFERROR(IF(Ej_Betalat_Lån*Angivna_Värden,Månadsbetalning,""), "") ->  | F198: =IFERROR(IF(Ej_Betalat_Lån*Angivna_Värden,Amortering,""), "") ->  | G198: =IFERROR(IF(Ej_Betalat_Lån*Angivna_Värden,Ränta,""), "") ->  | H198: =IFERROR(IF(Ej_Betalat_Lån*Angivna_Värden,Utgående_Saldo,""), "") -> 
B199: =IFERROR(IF(Ej_Betalat_Lån*Angivna_Värden,Betalningsnummer,""), "") ->  | C199: =IFERROR(IF(Ej_Betalat_Lån*Angivna_Värden,Betalningsdatum,""), "") ->  | D199: =IFERROR(IF(Ej_Betalat_Lån*Angivna_Värden,Ingående_Saldo,""), "") ->  | E199: =IFERROR(IF(Ej_Betalat_Lån*Angivna_Värden,Månadsbetalning,""), "") ->  | F199: =IFERROR(IF(Ej_Betalat_Lån*Angivna_Värden,Amortering,""), "") ->  | G199: =IFERROR(IF(Ej_Betalat_Lån*Angivna_Värden,Ränta,""), "") ->  | H199: =IFERROR(IF(Ej_Betalat_Lån*Angivna_Värden,Utgående_Saldo,""), "") -> 
B200: =IFERROR(IF(Ej_Betalat_Lån*Angivna_Värden,Betalningsnummer,""), "") ->  | C200: =IFERROR(IF(Ej_Betalat_Lån*Angivna_Värden,Betalningsdatum,""), "") ->  | D200: =IFERROR(IF(Ej_Betalat_Lån*Angivna_Värden,Ingående_Saldo,""), "") ->  | E200: =IFERROR(IF(Ej_Betalat_Lån*Angivna_Värden,Månadsbetalning,""), "") ->  | F200: =IFERROR(IF(Ej_Betalat_Lån*Angivna_Värden,Amortering,""), "") ->  | G200: =IFERROR(IF(Ej_Betalat_Lån*Angivna_Värden,Ränta,""), "") ->  | H200: =IFERROR(IF(Ej_Betalat_Lån*Angivna_Värden,Utgående_Saldo,""), "") -> 
B201: =IFERROR(IF(Ej_Betalat_Lån*Angivna_Värden,Betalningsnummer,""), "") ->  | C201: =IFERROR(IF(Ej_Betalat_Lån*Angivna_Värden,Betalningsdatum,""), "") ->  | D201: =IFERROR(IF(Ej_Betalat_Lån*Angivna_Värden,Ingående_Saldo,""), "") ->  | E201: =IFERROR(IF(Ej_Betalat_Lån*Angivna_Värden,Månadsbetalning,""), "") ->  | F201: =IFERROR(IF(Ej_Betalat_Lån*Angivna_Värden,Amortering,""), "") ->  | G201: =IFERROR(IF(Ej_Betalat_Lån*Angivna_Värden,Ränta,""), "") ->  | H201: =IFERROR(IF(Ej_Betalat_Lån*Angivna_Värden,Utgående_Saldo,""), "") -> 
... 171 more rows
